Cogmind - Beta 11.1 @@@ ROGUE MODE // 2022.04.29 @ 16:27:51 Player: Runia Result: Destroyed by Tracker with Linked Autogun Performance ------------- Evolutions (8) 4000 Regions Visited (33) 6600 Robots Destroyed (645) 3225 Value Destroyed (30951) 30951 Prototype IDs (103) 2060 Alien Tech Used (8) 1600 Bonus (10772) 10772 TOTAL SCORE: 59208 Bonus ------- Triggered High Security 500 High Alert Combat Kills 9466 Follower Combat Kills 1473 Entered Garrisons 200 Entered DSFs 500 Network Hubs Disabled 600 Aligned with FarCom 300 Met Zhirov 300 Met Warlord at Base 500 MAIN.C Attacked Warlord 500 Warlord Defense Kill 1014 A7 Reached Mainframe 300 Met R17 at Cetus 500 Met Warlord at Research 2000 Scanned by Researcher 500 Pursued by Intercept 500 Friendly Fire -8381 Cogmind --------- Core Integrity 0/1450 Matter 425/425 Energy 350/350 System Corruption 14% Temperature Cool (0) Movement Treading (147) Location -2/Section 7 Parts ------- > --- POWER (3) -------- Improved Quantum Reactor > --- PROPULSION (6) --- Experimental Biometal Heavy Treads Advanced Heavy Siege Treads > --- UTILITY (12) ----- 2N-1CE's Frost Array Experimental Coolant Injector Huge Storage Unit Experimental Optical Array Advanced Signal Interpreter Advanced Terrain Scan Processor Spacefold Activator > --- WEAPON (2) ------- (None) > --- INVENTORY (25) --- Armored Heavy Treads Experimental Energy Well (600) Matter Compressor (250) Long-range Terrain Scanner Experimental Terrain Scanner Precision Energy Filter Advanced Weapon Cycler Experimental EM Disruption Field Core Expander Core Expander Core Expander Integrity Redistributor Navigation Efficiency Matrix Subatomic Replicator Enhanced Nova Cannon Heavy Hardcell Cannon Heavy Shock Bomb Launcher Fusion Bomb Launcher Fusion Bomb Launcher Peak State ------------ > --- POWER ------------ Improved Quantum Reactor Vortex Chain Reactor > --- PROPULSION ------- Experimental Biometal Heavy Treads Advanced Heavy Siege Treads Advanced Heavy Siege Treads > --- UTILITY ---------- Experimental Cooling System 2N-1CE's Frost Array Experimental Coolant Injector Huge Storage Unit Experimental Optical Array Advanced Sensor Array Advanced Signal Interpreter Advanced Terrain Scan Processor Layered Heavy Armor Plating Improved Force Field Spacefold Activator > --- WEAPON ----------- Sigix Shearcannon > --- INVENTORY -------- Improved Fusion Compressor Armored Heavy Treads Experimental Energy Well Matter Compressor Long-range Terrain Scanner Experimental Terrain Scanner Precision Energy Filter Advanced Weapon Cycler Experimental EM Disruption Field Core Expander Core Expander Core Expander Core Regenerator Integrity Redistributor Subatomic Replicator Cooled Proton Cannon Enhanced Nova Cannon Enhanced Nova Cannon Null Cannon Heavy Hardcell Cannon Heavy Shock Bomb Launcher Fusion Bomb Launcher Fusion Bomb Launcher [Rating: 221] Favorites ----------- Power Quantum Reactor Engine Improved Ion Engine Power Core Reinforced Fission Core Reactor Quantum Reactor Propulsion Enhanced Biometal Leg Treads Light Treads Leg Enhanced Biometal Leg Wheel Armored Huge Wheel Hover Unit Cooled Gravmag System Utility Huge Storage Unit Device Advanced Weapon Cycler Storage Huge Storage Unit Processor Experimental Targeting Computer Hackware System Shield Protection Layered Heavy Armor Plating Artifact Spacefold Activator Weapon 8R-AWN's Boregun Energy Gun Vortex Shotgun Energy Cannon EMDS Ballistic Gun 8R-AWN's Boregun Ballistic Cannon Tri-rail Accelerator Launcher Heavy Shock Bomb Launcher Special Weapon Plasma Cutter Slashing Weapon Longsword +1 Build | -11 -10 -10 -9 -9 -9 -8 -8 -8 -7 -7 -7 -6 -6 -6 -6 -6 -6 -6 -5 -5 -5 -5 -4 -4 -4 -4 -4 -3 -3 -3 -2 -2 -2 ------- Run | Scr Mat Min Mat Min Exi Min Mat Sto Fac DSF Gar Fac Was Fac Ext Cet Arc Hub Fac Upp Upp Zhi Pro Fac Upp Upp War Pro Res Tes Res Qua Sec Slots Evolved 16 | . . . 2 . . . 2 . 2 . . 2 . . . . . . 2 . . . . 2 . . . . 2 . 2 . . Power 2 | . . . . . . . . . . . . . . . . . . . 1 . . . . . . . . . 1 . . . . Propulsion 4 | . . . 1 . . . 1 . . . . 1 . . . . . . . . . . . 1 . . . . . . . . . Utility 10 | . . . 1 . . . 1 . 2 . . 1 . . . . . . 1 . . . . 1 . . . . 1 . 2 . . Weapon . | . . . . . . . . . . . . . . . . . . . . . . . . . . . . . . . . . . Parts Attached 638 | 2 17 7 40 . 28 7 12 28 2 14 7 13 10 23 20 7 14 47 11 4 4 25 9 29 6 29 11 10 29 52 23 32 66 Power 28 | . 1 1 2 . 2 . . 1 . . . 1 1 . . 1 1 1 1 . . 1 . 1 1 1 1 . 3 2 2 1 2 Engine 5 | . . 1 2 . 1 . . . . . . 1 . . . . . . . . . . . . . . . . . . . . . Core 8 | . 1 . . . 1 . . 1 . . . . . . . . . . . . . . . 1 1 1 . . 2 . . . . Reactor 15 | . . . . . . . . . . . . . 1 . . 1 1 1 1 . . 1 . . . . 1 . 1 2 2 1 2 Propulsion 89 | 2 2 2 12 . 6 . 4 13 . 8 . 1 5 1 1 3 1 7 . . . 3 . 4 . . 2 2 3 . 2 2 3 Treads 58 | 2 2 . 11 . 3 . 3 10 . . . . 3 1 1 3 1 2 . . . . . 3 . . 1 2 3 . 2 2 3 Leg 27 | . . 2 1 . 3 . 1 1 . 8 . 1 . . . . . 5 . . . 3 . 1 . . 1 . . . . . . Wheel 2 | . . . . . . . . . . . . . 2 . . . . . . . . . . . . . . . . . . . . Hover 2 | . . . . . . . . 2 . . . . . . . . . . . . . . . . . . . . . . . . . Flight . | . . . . . . . . . . . . . . . . . . . . . . . . . . . . . . . . . . Utility 267 | . 3 1 5 . 5 . 3 9 2 2 1 5 2 11 4 1 8 23 9 2 4 13 6 9 5 15 3 . 14 34 9 20 39 Device 188 | . 2 1 1 . 4 . 1 1 1 . 1 2 . 8 3 1 7 13 6 2 2 11 3 4 4 12 1 . 9 33 8 16 31 Storage 7 | . 1 . 1 . . . . 1 . . . . . 1 . . . 1 . . . . . . . . 1 . . . . . 1 Processor 16 | . . . 1 . . . 1 . 1 . . 1 2 . . . . 3 . . . . . . . . . . 4 . 1 1 1 Hackware 4 | . . . . . . . . 2 . . . . . . . . . . . . . . . . . . . . . . . 2 . Protection 47 | . . . 2 . 1 . 1 5 . 2 . 2 . 2 1 . 1 6 3 . 2 2 3 5 1 3 1 . 1 1 . 1 1 Artifact 5 | . . . . . . . . . . . . . . . . . . . . . . . . . . . . . . . . . 5 Weapon 254 | . 11 3 21 . 15 7 5 5 . 4 6 6 2 11 15 2 4 16 1 2 . 8 3 15 . 13 5 8 9 16 10 9 22 Energy Gun 12 | . . . . . . . . . . 1 . . . 1 3 . . . . . . 1 . . . . 1 3 . . . 2 . Energy Cannon 88 | . . . . . . . . 1 . 1 . . 1 3 8 . . 3 1 1 . 4 3 11 . 1 1 3 5 12 5 5 19 Ballistic Gun 64 | . 8 2 12 . 5 3 4 2 . 1 4 3 1 5 . 1 3 6 . . . . . . . . . . 2 2 . . . Ballistic Cannon 6 | . . . . . . . . . . . . . . . . . . . . . . . . . . 5 1 . . . . . . Launcher 51 | . 3 1 6 . 2 4 . . . . 2 3 . 2 2 . . . . 1 . . . 2 . 6 1 2 2 2 5 2 3 Special Weapon 9 | . . . . . 4 . . 1 . 1 . . . . . 1 . . . . . 1 . 1 . . . . . . . . . Impact Weapon . | . . . . . . . . . . . . . . . . . . . . . . . . . . . . . . . . . . Slashing Weapon 24 | . . . 3 . 4 . 1 1 . . . . . . 2 . 1 7 . . . 2 . 1 . 1 1 . . . . . . Piercing Weapon . | . . . . . . . . . . . . . . . . . . . . . . . . . . . . . . . . . . Special Melee Weapon . | . . . . . . . . . . . . . . . . . . . . . . . . . . . . . . . . . . Unidentified Prototypes 41 | . . . . . 3 . . 5 . . . . 1 1 . 2 . 5 . . . 9 . . . . 3 . 1 6 . . 5 Corrupted Parts 9 | . . . . . . . . . . . . . . . . 1 2 2 . . . . . . . . . 2 . 2 . . . System Corruption 48 | . . . . . . . . . . . . . . . . 8 15 5 . . . . . . . . . 11 . 9 . . . Parts Lost 41 | . . 2 3 . 2 1 . 1 . 1 1 . . 1 2 . . 3 1 . . 2 1 3 . 5 . . . 2 3 1 6 Power 4 | . . 1 . . 1 . . . . . . . . . . . . . . . . . . 1 . . . . . . . . 1 Propulsion 4 | . . . 1 . 1 . . . . . . . . . . . . 1 . . . . . . . . . . . . . . 1 Utility 22 | . . . 2 . . . . 1 . 1 . . . . 1 . . 1 1 . . 1 . 2 . 4 . . . 2 2 1 3 Weapon 11 | . . 1 . . . 1 . . . . 1 . . 1 1 . . 1 . . . 1 1 . . 1 . . . . 1 . 1 Highest Loss Streak 5 | . . 1 1 . 2 1 . 1 . 1 1 . . 1 1 . . 2 1 . . 1 1 1 . 3 . . . 1 3 1 5 To Critical Strikes 1 | . . . . . 1 . . . . . . . . . . . . . . . . . . . . . . . . . . . . Average Slot Usage (%) 85 | . 99 99 97 100 99 99 100 99 100 99 100 100 89 85 84 79 80 73 92 82 82 84 90 84 69 68 68 80 79 76 75 77 75 Engine 1 | . 4 6 11 11 9 . . . . . . . 3 . . . . . . . . . . . . . . . . . . . . Core 1 | . 9 7 . . 1 11 9 9 7 7 7 5 . . . . . . . . . . . 2 5 5 2 . 1 . . . . Reactor 5 | . . . . . . . . . . . . . 2 6 6 6 6 6 11 11 11 11 11 7 5 5 4 5 7 8 8 8 7 Treads 15 | . 27 15 29 33 28 . 10 33 30 8 . . 4 17 20 19 20 16 . . . . . 6 15 15 15 17 14 14 13 13 12 Leg 8 | . . 12 3 . 4 33 25 2 . 21 30 33 13 2 . . . 3 29 29 29 28 29 16 . . . . . . . . . Device 15 | . 13 14 5 . 6 22 10 9 15 13 12 20 13 17 18 13 15 8 15 11 11 9 15 15 17 16 21 26 21 21 27 30 24 Storage 6 | . 14 14 11 11 11 11 9 9 7 7 7 6 6 6 6 6 6 6 5 5 5 5 5 5 5 5 6 10 7 4 4 4 4 Processor 9 | . . . 10 11 8 . 9 9 15 14 7 11 19 16 13 13 13 9 11 11 11 11 11 10 9 . . . 10 11 8 7 12 Protection 6 | . . . 4 11 7 . 7 7 7 8 17 7 6 5 6 6 4 7 10 5 5 9 9 12 5 13 9 10 6 4 4 4 3 Energy Cannon 3 | . . . . . . . . 4 7 7 7 6 1 4 5 6 . 2 5 4 5 3 4 4 5 . . 4 3 3 3 6 6 Ballistic Gun 6 | . 22 28 20 11 10 20 16 13 7 1 6 5 11 7 6 6 12 8 . . . . . . . . . . 4 3 4 . . Slashing Weapon 1 | . . . . 11 8 . 1 . . . . . . . . . . 1 . . . 1 . . . . 2 . . . . . . Naked Turns . | . . . . . . . . . . . . . . . . . . . . . . . . . . . . . . . . . . Heaviest Build 209 | 13 31 31 57 54 62 62 62 83 80 94 95 94 75 79 95 100 100 167 162 165 165 168 167 158 165 167 176 172 183 196 197 204 209 Greatest Support 245 | 40 40 40 63 63 80 80 100 80 80 80 64 80 140 160 160 180 180 190 150 150 150 150 150 225 225 225 225 225 220 200 210 230 245 Greatest Overweight (x) 2 | . . 1 . . 1 . 1 1 . 2 1 1 2 . . 1 . 2 1 1 1 1 1 2 . . 1 . . . . . 1 Average Overweight (x) . | . . . . . . . . . . . 1 . 1 . . . . . . 1 1 . . . . . . . . . . . . Largest Inventory Capacity 25 | 8 15 15 20 20 20 20 20 20 20 20 20 20 20 20 20 20 20 25 25 25 25 25 25 25 25 25 25 25 25 25 25 25 25 Average Capacity 22 | 8 14 15 17 20 20 20 20 20 20 20 20 20 20 20 20 20 20 24 25 25 25 25 25 25 25 25 25 25 25 25 25 25 25 Most Carried 25 | 6 13 14 17 13 20 20 20 20 20 20 20 20 20 20 20 20 20 25 25 25 25 25 24 25 25 25 25 25 25 25 25 25 25 Average Carried 20 | 2 8 12 14 13 17 19 19 19 18 19 19 19 19 19 19 19 18 23 22 24 24 24 20 22 24 22 21 24 24 24 23 24 23 Final Capacity 25 | 8 15 15 20 20 20 20 20 20 20 20 20 20 20 20 20 20 20 25 25 25 25 25 25 25 25 25 25 25 25 25 25 25 25 Final Carried 25 | 2 11 13 13 13 20 19 20 20 20 20 20 20 20 20 18 20 20 20 24 24 25 24 20 25 25 19 25 25 25 23 25 25 21 Class Distribution -------------------- 59% | Scavenger-Mutant 16% | Mutant 15% | Generator-Mutant 5% | Generator-Skirmisher Dominant Class ---------------- Mutant | -10/Materials Mutant | -10/Mines Scavenger-Mutant | -9/Materials Scavenger-Mutant | -9/Mines Mutant | -9/Exiles Scavenger-Mutant | -8/Mines Scavenger-Mutant | -8/Materials Scavenger-Mutant | -8/Storage Scavenger-Mutant | -7/Factory Scavenger-Mutant | -7/DSF Mutant | -7/Garrison Scavenger-Mutant | -6/Factory Scavenger-Mutant | -6/Waste Scavenger-Mutant | -6/Factory Scavenger-Mutant | -6/Extension Scavenger-Mutant | -6/Cetus Scavenger-Mutant | -6/Archives Scavenger-Mutant | -6/Hub_04(d) Scavenger-Mutant | -5/Factory Scavenger-Mutant | -5/Upper Caves Scavenger-Mutant | -5/Upper Caves Scavenger-Mutant | -5/Zhirov Scavenger-Mutant | -4/Proximity Caves Scavenger-Mutant | -4/Factory Scavenger-Mutant | -4/Upper Caves Mutant | -4/Upper Caves Scavenger-Mutant | -4/Warlord Scavenger-Mutant | -3/Proximity Caves Generator-Mutant | -3/Research Generator-Mutant | -3/Testing Generator-Mutant | -2/Research Generator-Mutant | -2/Quarantine Generator-Skirmisher | -2/Section 7 Resources | -11 -10 -10 -9 -9 -9 -8 -8 -8 -7 -7 -7 -6 -6 -6 -6 -6 -6 -6 -5 -5 -5 -5 -4 -4 -4 -4 -4 -3 -3 -3 -2 -2 -2 ----------- Run | Scr Mat Min Mat Min Exi Min Mat Sto Fac DSF Gar Fac Was Fac Ext Cet Arc Hub Fac Upp Upp Zhi Pro Fac Upp Upp War Pro Res Tes Res Qua Sec Matter Collected 18219 | 225 391 351 1050 . 819 189 428 896 . 214 204 478 428 748 596 171 485 1892 617 219 386 877 272 1124 135 882 151 101 658 1299 357 341 1235 Remotely 539 | . . . . . . . . . . . . . . . . . . . . . . . . . . . . . . 539 . . . Salvage Created 37458 | 118 775 271 1312 . 626 339 853 1794 . 349 530 1312 1776 1327 1466 319 676 3108 1778 28 389 778 546 2181 231 1514 451 402 467 3023 545 2040 6134 Parts 1645 | 6 53 14 90 . 91 33 52 100 . 13 26 62 40 74 62 13 34 154 50 7 19 21 20 87 5 42 7 24 33 106 25 77 205 Haulers Intercepted 17 | . 2 . 4 . . . . 6 . . . . . 1 . . . 1 2 . . . . 1 . . . . . . . . . Recyclers Shooed 12 | . 1 1 4 . . . . . . . . . . . 1 . . . 2 . . . . . . . . . . 2 . 1 . Parts Field Recycled . | . . . . . . . . . . . . . . . . . . . . . . . . . . . . . . . . . . Retrieved Matter . | . . . . . . . . . . . . . . . . . . . . . . . . . . . . . . . . . . Parts Self-Destructed 115 | . . . . . . . . . . . . . . . . . . . . 4 1 . 8 . . 9 76 17 . . . . . Prevented 87 | . . . . . . . . . . . . . . . . . . . . . 18 . 12 . 5 26 20 6 . . . . . Kills | -11 -10 -10 -9 -9 -9 -8 -8 -8 -7 -7 -7 -6 -6 -6 -6 -6 -6 -6 -5 -5 -5 -5 -4 -4 -4 -4 -4 -3 -3 -3 -2 -2 -2 ------- Run | Scr Mat Min Mat Min Exi Min Mat Sto Fac DSF Gar Fac Was Fac Ext Cet Arc Hub Fac Upp Upp Zhi Pro Fac Upp Upp War Pro Res Tes Res Qua Sec Combat Hostiles Destroyed 493 | . 14 4 23 . 4 13 7 15 . 6 11 19 6 17 19 3 3 42 21 6 6 . 8 29 2 26 7 10 10 46 12 27 77 Melee 2 | . . . . . 1 . . . . . . . . . . . . 1 . . . . . . . . . . . . . . . Guns 136 | . 10 2 15 . . 4 7 14 . 5 5 7 6 7 7 1 3 23 . . . . . . . . 1 1 5 10 2 1 . Cannons 173 | . . . . . . . . 1 . . 2 6 . 4 5 1 . 13 13 1 3 . 2 12 . 3 . 3 2 23 1 18 60 AOE 108 | . 4 2 8 . 3 9 . . . 1 3 6 . 5 4 . . . . 5 . . . 4 . 19 5 5 3 2 7 7 6 Classes Destroyed 28 | 2 6 . 2 . 3 . 1 1 . . . 4 1 . . . . 3 . 1 . . . 1 . . . . . . 1 1 1 Worker 26 | . 2 1 . . . 2 3 1 . . . 5 . 1 1 . . 2 . . . . . 2 . . . . 1 3 1 . 1 Builder 19 | . 1 . 3 . . . 2 1 . . . 1 . 2 2 . . . . . . . . 1 . . . . 1 5 . . . Tunneler 6 | 1 . 1 . . . 1 1 . . . . . . . . . . . 1 . . . . . . . . . 1 . . . . Hauler 17 | . 2 . 4 . . . . 6 . . . . . 1 . . . 1 2 . . . . 1 . . . . . . . . . Recycler 30 | 1 1 2 4 . . . 3 4 . . . 1 . 1 1 . . 1 1 . . . . 2 . . . . . 3 . 3 2 Carrier 1 | . . . . . . . . . . . . 1 . . . . . . . . . . . . . . . . . . . . . Mechanic 2 | . . . . . . . . . . . . 2 . . . . . . . . . . . . . . . . . . . . . Operator 19 | . . . . . . . . 3 . . . 1 . . . . 9 1 . . . . . 2 . . . . 1 1 . 1 . Turret 1 | . . . . . 1 . . . . . . . . . . . . . . . . . . . . . . . . . . . . Watcher 23 | . 3 . 2 . . . 1 1 . . . 1 . 3 1 . . 3 3 . . . . 3 . . . . . . . 1 1 Swarmer 87 | . 3 . 7 . . 10 . . . 6 . 5 . 3 4 1 . . . 5 . . . 7 . 6 . 6 5 5 5 4 5 Saboteur 5 | . . . . . . . . . . . . . . . . . . 1 . . . . . . . . . . . . . 1 3 Grunt 197 | . 11 4 10 . . 3 3 5 . . 6 12 . 4 9 . . 18 16 . 4 . . 4 . 11 3 2 . 20 4 11 37 Brawler 9 | . . . . . . . . . . . . 1 . . . . . 1 1 . . . . . . 1 1 . . 1 . 1 2 Duelist 21 | . . . 1 . . . . . . . . . . . . . . 3 1 . . . . 2 . 2 1 . . 4 . 1 6 Protector 5 | . . . . . . . . . . . . . . . . . . 2 . . . . . . . 1 . . . 1 . . 1 Sentry 53 | . . . 5 . . . 3 9 . . 2 . . 3 6 . 3 3 3 . . . . 4 . 1 . 1 1 3 . . 6 Specialist 3 | . . . . . . . . . . . . . . . . . . 2 . . . . . 1 . . . . . . . . . Hunter 35 | . . . . . . . 1 1 . . 3 . . 3 . . . 4 . . 2 . 6 4 2 2 2 . . . 2 3 . Programmer 51 | . . . . . . . . . . . . 1 . 4 . . . 2 . . . . 2 6 . 2 . . 4 11 . 5 14 Behemoth 4 | . . . . . . . . . . . . . . . . . . . . . . . . 1 . 1 . 1 . . . . 1 Compactor 6 | . . . . . . . . . . . . . 6 . . . . . . . . . . . . . . . . . . . . Cetus Guard 2 | . . . . . . . . . . . . . . . . 2 . . . . . . . . . . . . . . . . . S7 Guard 2 | . . . . . . . . . . . . . . . . . . . . . . . . . . . . . . . . . 2 Enhanced Grunt 7 | . . . . . . . . . . . . . . . . . . . . . . 7 . . . . . . . . . . . Lightning 6 | . . . . . . . . . . . . . . . . . . 6 . . . . . . . . . . . . . . . Investigator 1 | . . . . . . . . . . . . . . . . . . . . . . . . . . . . . . . . . 1 Striker 1 | . . . . . . . . . . . . . . . . . . . . . . . . . . . . . . . 1 . . Fortress 1 | . . . . . . . . . . . . . . . . . . . . . . . . . . . . . . . . 1 . Protovariant Y 1 | . . . . . . . . . . . . . . . . . . . . . . . . . . . . . . 1 . . . Zionite 7 | . . . . . 7 . . . . . . . . . . . . . . . . . . . . . . . . . . . . Packrat 4 | . . . . . . . . . . . . . . . . . . . . . . . . . 1 3 . . . . . . . Master Thief 1 | . . . . . . . . . . . . . . . . . . . . 1 . . . . . . . . . . . . . Assembled 3 | . . . . . 3 . . . . . . . . . . . . . . . . . . . . . . . . . . . . Thug 2 | . . . . . . . . . . . . . . . 1 1 . . . . . . . . . . . . . . . . . Butcher 1 | . . . . . . . . . . . . . . . 1 . . . . . . . . . . . . . . . . . . Guerrilla 2 | . . . . . . . . . . . . . . . . 1 1 . . . . . . . . . . . . . . . . Best Kill Streak 17 | 2 5 3 7 . 5 5 10 5 . 3 4 6 1 3 4 1 7 9 16 17 4 1 4 7 2 13 5 5 5 15 6 10 13 Combat Bots Only 15 | . 3 2 6 . 3 4 5 3 . 3 4 4 1 3 4 1 3 7 8 9 4 . 4 6 2 13 5 5 5 15 5 9 12 Max Kills in Single Turn 4 | 1 2 2 2 . 2 3 2 2 . 1 2 3 1 3 4 1 1 2 2 4 1 1 1 3 1 3 2 3 2 2 3 3 2 Gunslinging . | . . . . . . . . . . . . . . . . . . . . . . . . . . . . . . . . . . Exploded 4 | . 2 2 2 . 2 3 . . . 1 2 2 . 3 4 . . . . 4 . . . 3 . 3 2 3 2 2 3 3 2 Melee 1 | . . . . . 1 . . . . . . . . . . . . 1 . . . . . . . . . . . . . . . Uniques/NPCs Destroyed 9 | . . . . . 4 . . 1 . . . . . . . 1 1 . . . . 2 . . . . . . . . . . . 8R-AWN (-9/Exiles) EX-DEC (-9/Exiles) EX-HEX (-9/Exiles) EX-BIN (-9/Exiles) 01-MTF (-8/Storage) Revision 17 (-6/Cetus) A7 (-6/Archives) Svarog (-5/Zhirov) Perun (-5/Zhirov) Combat | -11 -10 -10 -9 -9 -9 -8 -8 -8 -7 -7 -7 -6 -6 -6 -6 -6 -6 -6 -5 -5 -5 -5 -4 -4 -4 -4 -4 -3 -3 -3 -2 -2 -2 -------- Run | Scr Mat Min Mat Min Exi Min Mat Sto Fac DSF Gar Fac Was Fac Ext Cet Arc Hub Fac Upp Upp Zhi Pro Fac Upp Upp War Pro Res Tes Res Qua Sec Damage Taken 30039 | . 664 591 1410 . 355 249 178 508 . 526 557 920 . 1020 1051 101 133 2952 478 130 448 868 666 1735 70 2376 213 278 300 1998 765 1803 6696 Core 3185 | . 131 74 235 . 40 6 . 30 . 31 62 137 . 147 79 22 . 144 82 . 38 160 49 132 7 152 12 . 5 30 21 72 1287 Absorbed by Shields 7958 | . . . . . . . . . . . . . . . 9 25 11 . . . . . . . 74 353 222 289 258 1868 211 1737 2901 Reduced by Siege Mode 652 | . . . . . . . . . . . . . . . . . . 94 . . . . . 35 . 79 . . . 130 . 200 114 Redirected to Shielding 284 | . . . . . 14 . . . . . . . . . . . . . 82 . 22 36 25 105 . . . . . . . . . Regen/Repaired (Parts) 2857 | . 107 . 72 . . . . . . . . . . 327 . . . . . . . . . 93 . . . . . . . . 2258 Core Remaining (%) 66 | 100 . 18 . . . 29 . 94 . . 86 . . . . . . 37 . . . . 67 . . . . 73 . 97 . . . Volleys Fired 1832 | 5 58 30 110 . 68 20 26 77 . 27 24 53 25 95 60 22 41 198 58 9 13 52 24 104 7 43 16 23 53 167 27 114 183 Largest 2 | 2 2 2 2 . 2 2 2 2 . 1 2 2 2 2 2 2 2 2 1 1 1 1 1 1 1 2 1 2 2 2 2 2 2 Hottest 250 | 60 60 40 46 . 60 60 58 65 . 50 65 65 63 105 138 125 70 125 70 70 70 70 90 90 70 98 90 120 128 168 130 240 250 Shots Fired 2861 | 10 113 58 207 . 91 35 52 140 . 27 41 95 50 144 114 44 81 351 58 9 13 52 25 104 7 44 16 31 89 269 34 200 257 Gun 1469 | 10 110 56 196 . 59 30 52 115 . 20 19 42 50 71 57 22 80 261 . . . . . . . . 6 16 46 111 7 33 . Cannon 1236 | . . . . . . . . 24 . 6 17 47 . 71 56 22 . 90 58 6 13 38 25 100 7 21 4 13 41 153 17 162 245 Launcher 118 | . 3 2 11 . 12 5 . . . . 5 6 . 2 1 . . . . 3 . . . 3 . 23 6 2 2 5 10 5 12 Special 38 | . . . . . 20 . . 1 . 1 . . . . . . 1 . . . . 14 . 1 . . . . . . . . . Kinetic 1376 | 5 77 56 196 . 59 30 52 115 . 9 19 42 50 66 54 22 80 261 . . . . . . . 17 2 . 46 111 7 . . Thermal 868 | . . . . . 20 . . 24 . 6 17 47 . 71 56 22 . 78 . . . . 7 22 . . 2 . 41 111 17 152 175 Explosive 66 | . 3 2 11 . 4 4 . . . . 5 6 . 2 1 . . . . 3 . . . 3 . 7 . 1 2 . 4 5 3 Electromagnetic 408 | 5 33 . . . 8 1 . . . 11 . . . 5 3 . . 12 58 6 13 38 18 78 7 20 6 14 . 47 6 10 9 Slashing 70 | . . . . . . . . . . . . . . . . . . . . . . . . . . . . . . . . . 70 Entropic 55 | . . . . . . . . . . . . . . . . . . . . . . . . . . . 6 16 . . . 33 . Robot Hit Streak 50 | 6 9 14 28 . 11 4 11 22 . 8 11 15 18 11 24 10 9 37 16 18 6 19 19 20 3 33 6 10 10 32 2 50 40 Robot Miss Streak 8 | 2 3 3 3 . 4 3 2 3 . 2 3 4 2 3 2 4 2 4 2 2 1 1 1 3 1 1 3 6 2 3 2 4 8 Penetration Max 2 | . . . . . 1 1 2 2 . . 1 2 . 2 1 2 1 1 1 . 1 . . 1 . . . . . 1 . . 1 Secondary Targets 3 | . . 1 . . . . . . . . . . . . . . 1 1 . . . . . . . . . . . . . . . Max Gunslinging Chain 1 | . . 1 . . . . . . . . . . . . . . 1 1 . . . . . . . . . . . . . . . Shots Hit Robots 1970 | 6 69 43 157 . 72 16 37 84 . 10 22 59 39 75 84 30 62 245 49 5 10 85 21 79 5 37 8 19 47 176 7 139 173 Core Hits 1182 | 3 37 16 59 . 32 19 23 38 . 9 18 56 12 44 43 13 30 103 21 7 4 20 6 37 1 62 14 20 21 77 21 72 244 Critical Kills 105 | . 1 . 1 . 7 5 8 15 . . 5 7 6 10 11 2 3 17 . . . . . . . . . . . 1 1 1 4 Critical Parts Destroyed 111 | . . . 1 . 16 2 7 11 . . 5 8 4 8 11 2 10 18 . . . . . . . . 1 1 2 1 1 2 . Critical Strikes 292 | . 1 . 2 . 26 7 16 30 . . 10 15 17 20 25 5 14 37 10 . 3 10 3 7 3 1 1 1 3 3 2 3 17 Meltdown 14 | . . . . . . . . 1 . . 1 1 . . 1 1 . 3 . . . . . . . . . . . 1 . 1 4 Destroy 216 | . 1 . 2 . 23 7 16 29 . . 9 14 17 19 23 4 14 32 . . . . . . . . . . 3 1 2 . . Blast 1 | . . . . . . . . . . . . . . . . . . . . . . . . . . 1 . . . . . . . Corrupt 41 | . . . . . . . . . . . . . . 1 1 . . 2 10 . 3 10 3 7 3 . . . . 1 . . . Sever 16 | . . . . . 3 . . . . . . . . . . . . . . . . . . . . . . . . . . . 13 Detonate 4 | . . . . . . . . . . . . . . . . . . . . . . . . . . . 1 1 . . . 2 . Melee Attacks 119 | . . . 2 . 33 . 3 1 . . . . . . 5 . 5 16 2 . . 42 . . . . 10 . . . . . . Impact . | . . . . . . . . . . . . . . . . . . . . . . . . . . . . . . . . . . Slashing 119 | . . . 2 . 33 . 3 1 . . . . . . 5 . 5 16 2 . . 42 . . . . 10 . . . . . . Piercing . | . . . . . . . . . . . . . . . . . . . . . . . . . . . . . . . . . . Sneak Attacks 25 | . . . . . . . 1 . . . . . . . . . 5 . . . . 19 . . . . . . . . . . . Combat Hostiles . | . . . . . . . . . . . . . . . . . . . . . . . . . . . . . . . . . . Follow-up Attacks 6 | . . . . . 6 . . . . . . . . . . . . . . . . . . . . . . . . . . . . Damage Inflicted 85330 | 69 1147 800 2746 . 2230 834 886 1870 . 425 853 2553 491 2068 2053 808 1964 5949 2903 890 672 1532 1057 4491 275 4548 1795 1794 2259 10029 1381 8159 15799 Guns 22707 | 69 890 573 2182 . 710 344 805 1486 . 305 207 565 491 649 432 214 1626 4150 . . . . . . . . 286 953 832 2191 128 2619 . Cannons 43433 | . . . . . . . . 356 . . 224 865 . 784 1259 594 . 1653 2903 168 672 1203 1057 3874 275 1389 56 156 832 6949 113 4280 13771 Explosions 17148 | . 257 227 564 . 292 490 . 28 . 120 422 1096 . 635 362 . . 132 . 722 . . . 617 . 3159 1453 685 595 864 1140 1260 2028 Melee 1819 | . . . . . 1071 . 81 . . . . . . . . . 338 . . . . 329 . . . . . . . . . . . Ramming 66 | . . . . . . . . . . . . 27 . . . . . 14 . . . . . . . . . . . 25 . . . Kinetic 19161 | 16 577 573 2182 . 710 344 805 1486 . . 207 565 491 488 330 214 1626 4150 . . . . . . . 1190 56 . 832 2191 128 . . Thermal 24720 | . 40 96 . . 157 106 . 356 . 120 224 1028 . 885 1259 594 . 1147 . . . . 229 823 . 260 850 378 989 5794 113 4051 5221 Explosive 9894 | . 217 131 564 . 192 313 . 28 . . 422 878 . 534 362 . . . . 722 . . . 518 . 1470 . 206 438 . 909 1216 774 Electromagnetic 17169 | 53 313 . . . 100 71 . . . 305 . 55 . 161 102 . . 638 2903 168 672 1203 828 3150 275 1628 603 257 . 2019 231 273 1161 Impact . | . . . . . . . . . . . . . . . . . . . . . . . . . . . . . . . . . . Slashing 10462 | . . . . . 1071 . 81 . . . . . . . . . 338 . . . . 329 . . . . . . . . . . 8643 Piercing . | . . . . . . . . . . . . . . . . . . . . . . . . . . . . . . . . . . Entropic 3858 | . . . . . . . . . . . . . . . . . . . . . . . . . . . 286 953 . . . 2619 . Highest Corruption 15 | . . . . . . . . . . . . . . 2 . 8 15 8 . . . 2 6 . . 1 . 11 1 14 . 5 14 Average Corruption 4 | . . . . . . . . . . . . . . 1 . 6 7 2 . . . 1 4 . . 1 . 10 1 4 . 3 7 Corruption Purged 29 | . . . . . . . . . . . . . . 4 . 5 18 . . . . . . . . 1 . . 1 . . . . Corruption Blocked 39 | . . . . . . . . . . . . . . . . . . . . . . . . . . . . . . . 39 . . Effects 209 | . . . . . . . . . . . . . . 3 . 5 7 34 . . . 11 12 . . 1 . 7 2 23 . 20 84 Message Errors 50 | . . . . . . . . . . . . . . . . 1 1 8 . . . 1 1 . . 1 . 4 1 7 . 3 22 Matter Fused 44 | . . . . . . . . . . . . . . . . 2 2 6 . . . 2 1 . . . . 2 1 4 . 7 17 Heat Flow Errors 27 | . . . . . . . . . . . . . . 1 . 1 . 6 . . . 1 3 . . . . . . . . 3 12 Energy Discharges 21 | . . . . . . . . . . . . . . . . . 1 3 . . . 2 3 . . . . . . 3 . . 9 Parts Rejected 1 | . . . . . . . . . . . . . . . . . . . . . . . . . . . . . . . . . 1 Data Loss (minor) 19 | . . . . . . . . . . . . . . . . . 1 4 . . . 3 2 . . . . . . 1 . 1 7 Data Loss (major) 13 | . . . . . . . . . . . . . . 1 . 1 1 3 . . . 1 . . . . . . . . . 2 4 Misfires 12 | . . . . . . . . . . . . . . . . . . 2 . . . . 1 . . . . 1 . 1 . 2 5 Alerts 7 | . . . . . . . . . . . . . . 1 . . 1 1 . . . 1 1 . . . . . . . . . 2 Weapon Failures 15 | . . . . . . . . . . . . . . . . . . 1 . . . . . . . . . . . 7 . 2 5 Overload Shots 7 | . . . . . . . . . . . . . . 2 4 . . . . . . . . . . . . . . . . 1 . Effects 2 | . . . . . . . . . . . . . . 2 . . . . . . . . . . . . . . . . . . . Energy Bleed 2 | . . . . . . . . . . . . . . 2 . . . . . . . . . . . . . . . . . . . Overflow Damage 2877 | . 18 18 . . 53 31 41 6 . . . 46 . 16 33 . 42 26 213 5 44 . 38 306 61 96 . 43 48 964 53 209 467 Projectiles 2097 | . . . . . 21 . . 6 . . . 24 . . 3 . . 26 213 . 44 . 38 274 61 65 . . . 943 . 103 276 Explosions 682 | . 18 18 . . 17 31 . . . . . 22 . 16 30 . . . . 5 . . . 32 . 31 . 43 48 21 53 106 191 Melee 98 | . . . . . 15 . 41 . . . . . . . . . 42 . . . . . . . . . . . . . . . . Knockbacks 6 | . . . . . . . . . . . . . . . . . . . . . . . . . . 6 . . . . . . . Impact . | . . . . . . . . . . . . . . . . . . . . . . . . . . . . . . . . . . Kinetic 6 | . . . . . . . . . . . . . . . . . . . . . . . . . . 6 . . . . . . . Secondary . | . . . . . . . . . . . . . . . . . . . . . . . . . . . . . . . . . . Self-Inflicted Damage 1347 | . 30 . 48 . 58 23 . . . 53 . 178 . . . . . 16 . 51 . . . . . 180 46 58 38 348 . . 220 Shots 44 | . 1 . 2 . 2 2 . . . 1 . 5 . . . . . 2 . 1 . . . . . 8 1 2 1 7 . . 9 Rammed 2 | . . . . . . . . . . . . . . . . . . . . . . . . . . . . . . 2 . . . Targets Rammed 4 | . . . . . . . . . . . . 1 . . . . . 1 . . . . . . . . . . . 2 . . . Kicked 1 | . . . . . . . . . . . . 1 . . . . . . . . . . . . . . . . . . . . . Crushed 1 | . . . . . . . . . . . . . . . . . . 1 . . . . . . . . . . . . . . . Highest Temperature 466 | 20 100 5 1 . 20 128 45 81 . 346 326 51 30 94 86 266 . 310 144 78 55 279 466 158 80 63 44 88 164 42 11 114 167 Average Temperature 54 | 15 32 2 1 . 12 42 17 16 . 128 135 16 10 27 28 63 . 97 45 39 30 92 125 44 37 24 16 31 48 16 11 37 28 Received Heat Transfer 4873 | . 348 177 405 . 63 72 90 171 . . 246 237 . 210 322 27 22 588 189 . 81 36 . 142 . 317 27 18 4 298 25 219 539 Effects 8 | . . . . . . . . . . . 1 . . . . . . . . . . 5 2 . . . . . . . . . . Energy Bleed 3 | . . . . . . . . . . . . . . . . . . . . . . 1 2 . . . . . . . . . . Interference 4 | . . . . . . . . . . . . . . . . . . . . . . 4 . . . . . . . . . . . Matter Decay 1 | . . . . . . . . . . . 1 . . . . . . . . . . . . . . . . . . . . . . Siege Activations 29 | . . . . . . . . . . . . . . . . . . 8 . . . . . 2 . 2 . 1 . 8 . 4 4 Total Turns 735 | . . . . . . . . . . . . . . . . . . 323 . . . . . 34 . 24 . 13 . 138 . 118 85 Longest Duration 141 | . . . . . . . . . . . . . . . . . . 141 . . . . . 18 . 13 . 13 . 33 . 37 33 Robots Corrupted 73 | . . . . . 1 . . . . . . . . 1 . . . 2 11 . 3 9 6 14 2 4 . 1 . 10 2 . 7 Combat Hostiles 58 | . . . . . . . . . . . . . . 1 . . . 2 8 . 3 . 6 13 2 4 . 1 . 10 2 . 6 Parts Fried 145 | . . . . . . . . . . 2 . . . 4 . . . 7 22 2 8 15 3 29 2 10 . . . 26 3 2 10 Impact Corruptions . | . . . . . . . . . . . . . . . . . . . . . . . . . . . . . . . . . . Robots Melted 19 | . . . . . . . . 1 . . 1 1 . . 3 1 . 3 . . . . . . . . 1 . . 1 . 2 5 Combat Hostiles 16 | . . . . . . . . . . . 1 . . . 3 1 . 3 . . . . . . . . 1 . . 1 . 1 5 Parts Melted 68 | . . . . . 3 . . 4 . . 2 6 . 4 10 1 . 9 . . . . . . . . 4 . . 2 . 10 13 Heat Transferred 20201 | . 50 100 . . 350 100 . 650 . 150 350 1500 . 1250 1900 850 . 1750 . . . . . 50 . 200 600 250 100 2400 . 3514 4087 Parts Sabotaged 4 | . . . . . . . . . . . . . . . . . . . . . . . . . . . . . . 1 . . 3 Parts Stolen 3 | . . . . . . . . . . . . . . . . . . . . 1 . . . . . 2 . . . . . . . Parts Stripped . | . . . . . . . . . . . . . . . . . . . . . . . . . . . . . . . . . . Power Chain Reactions 18 | . 1 . . . . . . . . 1 . 1 . . . . . . . . . . . . . 3 2 2 2 4 . . 2 Missiles Intercepted . | . . . . . . . . . . . . . . . . . . . . . . . . . . . . . . . . . . Alert | -11 -10 -10 -9 -9 -9 -8 -8 -8 -7 -7 -7 -6 -6 -6 -6 -6 -6 -6 -5 -5 -5 -5 -4 -4 -4 -4 -4 -3 -3 -3 -2 -2 -2 ------- Run | Scr Mat Min Mat Min Exi Min Mat Sto Fac DSF Gar Fac Was Fac Ext Cet Arc Hub Fac Upp Upp Zhi Pro Fac Upp Upp War Pro Res Tes Res Qua Sec Peak Influence 2650 | 10 362 207 401 121 . 386 524 458 114 320 629 874 292 712 766 772 484 1062 1269 . . . . 996 . . . . 660 1355 1377 1106 2650 Initial 762 | . 6 70 8 121 . . 150 136 114 79 240 329 292 64 348 350 228 99 502 . . . . . . . . . 195 294 762 622 594 Average 559 | 6 196 165 216 121 . 241 364 215 114 188 460 470 194 285 557 556 419 498 811 . . . . 505 . . . . 430 614 1136 859 1437 Maximum Alert Level 5 | . 1 1 2 . . 1 2 2 . 1 2 3 1 3 3 3 2 3 4 . . . . 3 . . . . 2 4 4 4 5 Low Security (%) 18 | 100 42 88 35 100 . 41 15 34 100 68 . . 48 39 . . . 21 . . . . . 8 . . . . 5 . . . . Level 1 29 | . 57 11 59 . . 58 30 62 . 31 27 53 51 38 7 9 26 21 . . . . . 31 . . . . 42 40 . . . Level 2 25 | . . . 4 . . . 54 2 . . 72 33 . 16 85 72 73 35 36 . . . . 33 . . . . 51 27 . 24 2 Level 3 16 | . . . . . . . . . . . . 13 . 5 7 18 . 21 50 . . . . 26 . . . . . 18 38 61 40 Level 4 6 | . . . . . . . . . . . . . . . . . . . 13 . . . . . . . . . . 12 61 13 16 Level 5 1 | . . . . . . . . . . . . . . . . . . . . . . . . . . . . . . . . . 18 High Security 2 | . . . . . . . . . . . . . . . . . . . . . . . . . . . . . . . . . 22 Max Security . | . . . . . . . . . . . . . . . . . . . . . . . . . . . . . . . . . . Sterilizations 1 | . . . . . . . . . . 1 . . . . . . . . . . . . . . . . . . . . . . . Squads Dispatched 107 | . 4 . 4 . . . 3 1 . 1 . 5 . 10 1 . . 11 3 . . . . 6 . 1 . . 3 11 1 6 36 Investigation 13 | . 3 . 2 . . . . . . . . . . 3 1 . . 1 1 . . . . 1 . . . . . 1 . . . Extermination 24 | . . . . . . . . . . . . 2 . 3 . . . 3 . . . . . 1 . . . . 2 5 . 3 5 Reinforcement 23 | . 1 . 2 . . . 2 1 . 1 . 1 . 1 . . . 5 1 . . . . 1 . . . . . 2 1 2 2 Assault 44 | . . . . . . . . . . . . 2 . 2 . . . 2 1 . . . . 3 . 1 . . 1 3 . 1 28 Garrison 2 | . . . . . . . 1 . . . . . . 1 . . . . . . . . . . . . . . . . . . . Intercept 1 | . . . . . . . . . . . . . . . . . . . . . . . . . . . . . . . . . 1 Searches Triggered . | . . . . . . . . . . . . . . . . . . . . . . . . . . . . . . . . . . Construction Impeded 4 | . . . 1 . . . 1 . . . . . . . . . . 1 . . . . . . . . . . . 1 . . . Haulers Reinforced 2 | . . . . . . . . . . . . . . . . . . 1 1 . . . . . . . . . . . . . . Active Scanning Responses . | . . . . . . . . . . . . . . . . . . . . . . . . . . . . . . . . . . Cargo Convoy Interrupts . | . . . . . . . . . . . . . . . . . . . . . . . . . . . . . . . . . . Stealth | -11 -10 -10 -9 -9 -9 -8 -8 -8 -7 -7 -7 -6 -6 -6 -6 -6 -6 -6 -5 -5 -5 -5 -4 -4 -4 -4 -4 -3 -3 -3 -2 -2 -2 --------- Run | Scr Mat Min Mat Min Exi Min Mat Sto Fac DSF Gar Fac Was Fac Ext Cet Arc Hub Fac Upp Upp Zhi Pro Fac Upp Upp War Pro Res Tes Res Qua Sec Distress Signals 25 | . 2 . . . . . 3 1 . . . . . 1 . 2 . . 1 . . . . 3 . . 1 . . 3 5 . 3 Communications Jammed 20 | . . . . . . . . 8 . . . 4 . 6 2 . . . . . . . . . . . . . . . . . . Distress Signals 18 | . . . . . . . . 8 . . . 4 . 4 2 . . . . . . . . . . . . . . . . . . Times Spotted 840 | . 20 8 35 . 53 14 13 22 . 8 11 28 13 20 26 15 18 55 31 7 10 6 8 46 2 35 25 14 13 59 13 38 174 Peak Tracking Total 32 | . 3 2 5 . 11 4 6 4 . 3 3 4 3 3 5 5 2 7 7 5 4 3 2 8 2 7 10 7 6 7 5 6 32 Tactical Retreats 64 | . 1 1 1 . 23 1 1 . . 1 . 2 5 . . . . 4 2 . . 3 . 4 . 1 . 1 1 2 . 1 9 Traps | -11 -10 -10 -9 -9 -9 -8 -8 -8 -7 -7 -7 -6 -6 -6 -6 -6 -6 -6 -5 -5 -5 -5 -4 -4 -4 -4 -4 -3 -3 -3 -2 -2 -2 ------- Run | Scr Mat Min Mat Min Exi Min Mat Sto Fac DSF Gar Fac Was Fac Ext Cet Arc Hub Fac Upp Upp Zhi Pro Fac Upp Upp War Pro Res Tes Res Qua Sec Traps Triggered 18 | . 1 . 1 . . . . 1 . 3 3 3 . . . . . 1 . . . . . . . . . . 2 1 . 1 1 Indirectly . | . . . . . . . . . . . . . . . . . . . . . . . . . . . . . . . . . . Trap Hack Attempts . | . . . . . . . . . . . . . . . . . . . . . . . . . . . . . . . . . . Triggered . | . . . . . . . . . . . . . . . . . . . . . . . . . . . . . . . . . . Disarmed . | . . . . . . . . . . . . . . . . . . . . . . . . . . . . . . . . . . Reprogrammed . | . . . . . . . . . . . . . . . . . . . . . . . . . . . . . . . . . . Reused . | . . . . . . . . . . . . . . . . . . . . . . . . . . . . . . . . . . Traps Extracted . | . . . . . . . . . . . . . . . . . . . . . . . . . . . . . . . . . . Installed . | . . . . . . . . . . . . . . . . . . . . . . . . . . . . . . . . . . Triggered 5 | . . . . . . . . . . . . . . . . . . . . . . . . 1 . . 4 . . . . . . Exploded 3 | . . . . . 3 . . . . . . . . . . . . . . . . . . . . . . . . . . . . Machines | -11 -10 -10 -9 -9 -9 -8 -8 -8 -7 -7 -7 -6 -6 -6 -6 -6 -6 -6 -5 -5 -5 -5 -4 -4 -4 -4 -4 -3 -3 -3 -2 -2 -2 ---------- Run | Scr Mat Min Mat Min Exi Min Mat Sto Fac DSF Gar Fac Was Fac Ext Cet Arc Hub Fac Upp Upp Zhi Pro Fac Upp Upp War Pro Res Tes Res Qua Sec Machines Disabled 142 | . . 1 2 . 13 2 2 6 . 1 . 11 . 6 4 1 4 28 2 . . . . 5 . 1 1 . 2 12 6 12 20 Max in Single Turn 11 | . . 1 1 . 1 1 1 2 . 1 . 4 . 2 1 . 1 11 1 . . . . 1 . 1 1 . 1 1 1 1 1 Garrison Access 11 | . . . . . . . . . . . . . . 3 . . . 2 1 . . . . 1 . . . . 1 . 1 1 1 Network Hub 3 | . . . . . . . . . . . . . . . . . . 3 . . . . . . . . . . . . . . . Machines Sabotaged . | . . . . . . . . . . . . . . . . . . . . . . . . . . . . . . . . . . Garrisons Compromised . | . . . . . . . . . . . . . . . . . . . . . . . . . . . . . . . . . . Overloaded Fab Kills . | . . . . . . . . . . . . . . . . . . . . . . . . . . . . . . . . . . Hacking | -11 -10 -10 -9 -9 -9 -8 -8 -8 -7 -7 -7 -6 -6 -6 -6 -6 -6 -6 -5 -5 -5 -5 -4 -4 -4 -4 -4 -3 -3 -3 -2 -2 -2 --------- Run | Scr Mat Min Mat Min Exi Min Mat Sto Fac DSF Gar Fac Was Fac Ext Cet Arc Hub Fac Upp Upp Zhi Pro Fac Upp Upp War Pro Res Tes Res Qua Sec Machines Accessed 119 | . 9 1 8 . 2 . 2 9 1 . . 2 . 15 15 1 . 10 2 . 1 4 . 6 . . 1 . 5 2 1 7 15 Terminals 81 | . 6 . 5 . . . 2 8 1 . . 2 . 9 15 1 . 8 1 . . . . 2 . . . . 3 2 1 5 10 Fabricators 3 | . . . . . . . . . . . . . . 2 . . . . . . . . . 1 . . . . . . . . . Repair Stations 8 | . 1 . 1 . . . . . . . . . . 1 . . . . . . . . . 1 . . . . 1 . . 1 2 Recycling Units 4 | . 2 . 1 . . . . 1 . . . . . . . . . . . . . . . . . . . . . . . . . Scanalyzers 5 | . . . 1 . . . . . . . . . . 1 . . . . . . . . . 1 . . . . . . . . 2 Garrison Access 9 | . . . . . . . . . . . . . . 2 . . . 2 1 . . . . 1 . . . . 1 . . 1 1 Total Hacks 342 | . 21 1 20 . 2 . 8 22 1 . . 5 . 30 28 3 . 23 14 . 1 17 . 25 . . 1 . 24 7 9 23 57 Successful 149 | . 12 1 12 . 2 . 6 9 1 . . 3 . 12 9 1 . 12 4 . 1 17 . 10 . . 1 . 8 1 4 10 13 Failed 192 | . 8 . 8 . . . 2 13 . . . 2 . 18 19 2 . 11 10 . . . . 15 . . . . 16 6 5 13 44 Catastrophic 41 | . 1 . . . . . . . . . . . . 4 2 1 . 2 2 . . . . 2 . . . . 4 3 1 3 16 Database Lockouts 1 | . 1 . . . . . . . . . . . . . . . . . . . . . . . . . . . . . . . . Manual 95 | . 10 . 5 . 1 . 4 7 . . . . . 11 2 1 . 16 7 . . . . . . . . . 9 . . 6 16 Terminals 253 | . 17 . 15 . . . 8 21 1 . . 5 . 20 28 3 . 20 10 . . . . 9 . . . . 19 7 9 21 40 Fabricators 7 | . . . . . . . . . . . . . . 2 . . . . . . . . . 5 . . . . . . . . . Repair Stations 20 | . 2 . 3 . . . . . . . . . . 2 . . . . . . . . . 4 . . . . 4 . . 1 4 Recycling Units 4 | . 2 . 1 . . . . 1 . . . . . . . . . . . . . . . . . . . . . . . . . Scanalyzers 17 | . . . 1 . . . . . . . . . . 2 . . . . . . . . . 2 . . . . . . . . 12 Garrison Access 19 | . . . . . . . . . . . . . . 4 . . . 3 4 . . . . 5 . . . . 1 . . 1 1 Terminal Hacks 100 | . 8 1 8 . 2 . 6 8 1 . . 3 . 5 8 1 . 5 1 . 1 17 . 4 . . 1 . 5 1 4 6 4 Record 7 | . . . . . 1 . . . . . . . . . . . . . . . . 5 . . . . . . . . . 1 . Part Schematic 5 | . . . . . . . . . . . . . . . . . . . . . . 4 . 1 . . . . . . . . . Robot Analysis 9 | . 2 . 1 . . . 1 . . . . . . . . . . . . . . 4 . . . . . . . . 1 . . Prototype ID Bank 14 | . 4 . 1 . . . 2 2 . . . . . . . . . . 1 . . 4 . . . . . . . . . . . Open Door 14 | . . 1 . . . . . 1 . . . . . . 8 1 . . . . 1 . . . . . 1 . . . . . 1 Open DSF 1 | . . . . . . . . . 1 . . . . . . . . . . . . . . . . . . . . . . . . Branch Access Points 4 | . . . . . . . 1 . . . . . . 1 . . . . . . . . . 1 . . . . 1 . . . . Emergency Access Points 1 | . . . . . . . . . . . . . . . . . . . . . . . . . . . . . . . 1 . . Terminal Index 6 | . 1 . . . . . . . . . . 1 . 1 . . . . . . . . . 1 . . . . 1 . . 1 . Fabricator Index 1 | . . . . . . . . . . . . . . . . . . . . . . . . 1 . . . . . . . . . Repair Station Index 1 | . . . . . . . . . . . . . . . . . . . . . . . . . . . . . 1 . . . . Alert Level 5 | . . . . . . . . 2 . . . . . . . . . 2 . . . . . . . . . . . . . 1 . Unreport Threat 10 | . . . 2 . . . . 2 . . . . . . . . . 2 . . . . . . . . . . . . . 2 2 Locate Traps 8 | . . . 2 . . . . 1 . . . 1 . 1 . . . . . . . . . . . . . . 1 1 . . 1 Recall Extermination 1 | . . . . . . . . . . . . . . . . . . . . . . . . . . . . . 1 . . . . Hauler Manifests 2 | . 1 . . . . . . . . . . 1 . . . . . . . . . . . . . . . . . . . . . Registered Components 1 | . . . . . . . . . . . . . . . . . . . . . . . . . . . . . . . 1 . . Registered Prototypes 1 | . . . . . . . . . . . . . . . . . . . . . . . . . . . . . . . 1 . . Zone Layout 8 | . . . 2 . . . 2 . . . . . . 2 . . . 1 . . . . . . . . . . . . . 1 . EX-Prototype ID Bank 1 | . . . . . 1 . . . . . . . . . . . . . . . . . . . . . . . . . . . . Fabricator Hacks 3 | . . . . . . . . . . . . . . 1 . . . . . . . . . 2 . . . . . . . . . Network Status 1 | . . . . . . . . . . . . . . 1 . . . . . . . . . . . . . . . . . . . Load Schematic 1 | . . . . . . . . . . . . . . . . . . . . . . . . 1 . . . . . . . . . Build 1 | . . . . . . . . . . . . . . . . . . . . . . . . 1 . . . . . . . . . Repair Station Hacks 11 | . 2 . 2 . . . . . . . . . . 2 . . . . . . . . . 2 . . . . 1 . . . 2 Scan Component 6 | . 1 . 1 . . . . . . . . . . 1 . . . . . . . . . 1 . . . . 1 . . . 1 Repair 5 | . 1 . 1 . . . . . . . . . . 1 . . . . . . . . . 1 . . . . . . . . 1 Recycling Unit Hacks 1 | . . . . . . . . 1 . . . . . . . . . . . . . . . . . . . . . . . . . Retrieve Components 1 | . . . . . . . . 1 . . . . . . . . . . . . . . . . . . . . . . . . . Scanalyzer 8 | . . . 1 . . . . . . . . . . 1 . . . . . . . . . 2 . . . . . . . . 4 Insert Component 8 | . . . 1 . . . . . . . . . . 1 . . . . . . . . . 2 . . . . . . . . 4 Garrison Access Hacks 6 | . . . . . . . . . . . . . . 1 . . . 2 1 . . . . . . . . . . . . 1 1 Seal Access 6 | . . . . . . . . . . . . . . 1 . . . 2 1 . . . . . . . . . . . . 1 1 Unauthorized Hacks 20 | . 2 . 1 . . . . . . . . . . 2 1 . . 5 2 . . . . . . . . . 2 . . 3 2 Terminals 16 | . . . . . . . . . . . . . . 1 1 . . 5 2 . . . . . . . . . 2 . . 3 2 Track 4 | . . . . . . . . . . . . . . . . . . 2 . . . . . . . . . . . . . 1 1 Botnet 7 | . . . . . . . . . . . . . . 1 1 . . 1 1 . . . . . . . . . 1 . . 1 1 Disrupt 1 | . . . . . . . . . . . . . . . . . . 1 . . . . . . . . . . . . . . . Operators 4 | . . . . . . . . . . . . . . . . . . 1 1 . . . . . . . . . 1 . . 1 . Fabricators 1 | . . . . . . . . . . . . . . 1 . . . . . . . . . . . . . . . . . . . Liberate 1 | . . . . . . . . . . . . . . 1 . . . . . . . . . . . . . . . . . . . Repair Stations . | . . . . . . . . . . . . . . . . . . . . . . . . . . . . . . . . . . Recycling Units 3 | . 2 . 1 . . . . . . . . . . . . . . . . . . . . . . . . . . . . . . Tunnel 3 | . 2 . 1 . . . . . . . . . . . . . . . . . . . . . . . . . . . . . . Scanalyzers . | . . . . . . . . . . . . . . . . . . . . . . . . . . . . . . . . . . Garrison Access . | . . . . . . . . . . . . . . . . . . . . . . . . . . . . . . . . . . Data Cores Recovered 5 | . . . . . . . . 2 . . . . . . . . . . . . . . . 1 . . . . 1 . . 1 . Used 2 | . . . . . . . . . . . . . . . . . . . . . . . . . . . . . 1 . . 1 . Hacking Detections 88 | . 6 . 5 . . . 2 8 1 . . 2 . 12 11 1 . 8 1 . . . . 5 . . . . 5 2 1 5 13 Full Trace Events 6 | . . . . . . . . . . . . . . 3 1 . . 1 . . . . . 1 . . . . . . . . . Feedback Events . | . . . . . . . . . . . . . . . . . . . . . . . . . . . . . . . . . . Feedback Blocked . | . . . . . . . . . . . . . . . . . . . . . . . . . . . . . . . . . . Robot Schematics Acquired . | . . . . . . . . . . . . . . . . . . . . . . . . . . . . . . . . . . Robots Built . | . . . . . . . . . . . . . . . . . . . . . . . . . . . . . . . . . . Authchips . | . . . . . . . . . . . . . . . . . . . . . . . . . . . . . . . . . . Time . | . . . . . . . . . . . . . . . . . . . . . . . . . . . . . . . . . . Total Robot Build Rating . | . . . . . . . . . . . . . . . . . . . . . . . . . . . . . . . . . . Part Schematics Acquired 5 | . . . . . . . . . . . . . . . . . . . . . . 4 . 1 . . . . . . . . . Parts Built 2 | . . . . . . . . . . . . . . . . . . . . . . . . 2 . . . . . . . . . Authchips . | . . . . . . . . . . . . . . . . . . . . . . . . . . . . . . . . . . Time 139 | . . . . . . . . . . . . . . . . . . . . . . . . 139 . . . . . . . . . Total Part Build Rating 18 | . . . . . . . . . . . . . . . . . . . . . . . . 18 . . . . . . . . . Parts Repaired 5 | . 1 . 1 . . . . . . . . . . 1 . . . . . . . . . 1 . . . . . . . . 1 Time 196 | . 26 . 32 . . . . . . . . . . 108 . . . . . . . . . 12 . . . . . . . . 18 Parts Recycled . | . . . . . . . . . . . . . . . . . . . . . . . . . . . . . . . . . . Recycled Matter . | . . . . . . . . . . . . . . . . . . . . . . . . . . . . . . . . . . Retrieved Matter . | . . . . . . . . . . . . . . . . . . . . . . . . . . . . . . . . . . Retrieved Components 10 | . . . . . . . . 10 . . . . . . . . . . . . . . . . . . . . . . . . . Parts Scanalyzed . | . . . . . . . . . . . . . . . . . . . . . . . . . . . . . . . . . . Part Schematics Acquired . | . . . . . . . . . . . . . . . . . . . . . . . . . . . . . . . . . . Parts Damaged . | . . . . . . . . . . . . . . . . . . . . . . . . . . . . . . . . . . Bothacking | -11 -10 -10 -9 -9 -9 -8 -8 -8 -7 -7 -7 -6 -6 -6 -6 -6 -6 -6 -5 -5 -5 -5 -4 -4 -4 -4 -4 -3 -3 -3 -2 -2 -2 ------------ Run | Scr Mat Min Mat Min Exi Min Mat Sto Fac DSF Gar Fac Was Fac Ext Cet Arc Hub Fac Upp Upp Zhi Pro Fac Upp Upp War Pro Res Tes Res Qua Sec Used RIF Installer . | . . . . . . . . . . . . . . . . . . . . . . . . . . . . . . . . . . Robots Hacked . | . . . . . . . . . . . . . . . . . . . . . . . . . . . . . . . . . . Non-combat . | . . . . . . . . . . . . . . . . . . . . . . . . . . . . . . . . . . Combat . | . . . . . . . . . . . . . . . . . . . . . . . . . . . . . . . . . . Robot Hacks Applied . | . . . . . . . . . . . . . . . . . . . . . . . . . . . . . . . . . . Relay Couplers Released 12 | . . . . . . . . . . . . . . 2 . . . . 2 . . . . . . . . . 1 . 5 . 2 Machine Destruction 8 | . . . . . . . . . . . . . . 2 . . . . 2 . . . . . . . . . 1 . 1 . 2 Programmers 4 | . . . . . . . . . . . . . . . . . . . . . . . . . . . . . . . 4 . . Fabnet Peak Effective % . | . . . . . . . . . . . . . . . . . . . . . . . . . . . . . . . . . . Robots Rewired 18 | . . . . . . . . . . . . . . . 13 . . . . . . . . . . 1 4 . . . . . . Allies Hacked 1 | . . . . . . . . . . . . . . . . 1 . . . . . . . . . . . . . . . . . Hacks Repelled . | . . . . . . . . . . . . . . . . . . . . . . . . . . . . . . . . . . Allies | -11 -10 -10 -9 -9 -9 -8 -8 -8 -7 -7 -7 -6 -6 -6 -6 -6 -6 -6 -5 -5 -5 -5 -4 -4 -4 -4 -4 -3 -3 -3 -2 -2 -2 -------- Run | Scr Mat Min Mat Min Exi Min Mat Sto Fac DSF Gar Fac Was Fac Ext Cet Arc Hub Fac Upp Upp Zhi Pro Fac Upp Upp War Pro Res Tes Res Qua Sec Total Allies 39 | . . 2 . . . . . 1 . 1 . . . . 29 . . . . . . . . 1 . 1 4 . . . . . . Largest Group 14 | . . 2 . . . . . 1 . 1 . . . . 14 13 4 . . . . . . 1 . 1 4 1 . . . . . Highest-Rated Group 493 | . . 42 . . . . . 100 . 90 . . . . 493 493 248 . . . . . . 137 . 47 220 56 . . . . . Highest-Rated Ally 159 | . . 31 . . . . . 100 . 90 . . . . 159 159 153 . . . . . . 137 . 47 65 56 . . . . . Total Orders 7 | . . . . . . . . . . 1 . . . . 2 . 1 . . . 2 . . . . . 1 . . . . . . STAY 4 | . . . . . . . . . . 1 . . . . 1 . 1 . . . . . . . . . 1 . . . . . . FOLLOW 1 | . . . . . . . . . . . . . . . 1 . . . . . . . . . . . . . . . . . . RETURN 2 | . . . . . . . . . . . . . . . . . . . . . 2 . . . . . . . . . . . . Ally Attacks 296 | . . 4 . . . . . 7 . 10 . . . . 125 99 15 . . . 4 . . 3 . 5 22 2 . . . . . Total Damage 7238 | . . 21 . . . . . 267 . 451 . . . . 2771 2345 273 . . . . . . 160 . . 855 95 . . . . . Kills 36 | . . . . . . . . 3 . 3 . . . . 10 12 1 . . . . . . 1 . . 4 2 . . . . . Allies Corrupted . | . . . . . . . . . . . . . . . . . . . . . . . . . . . . . . . . . . Allies Melted 2 | . . . . . . . . 1 . . . . . . 1 . . . . . . . . . . . . . . . . . . Field Lobotomies 4 | . . . . . . . . 1 . 1 . . . . . . 1 . . . . . . 1 . . . . . . . . . Intel | -11 -10 -10 -9 -9 -9 -8 -8 -8 -7 -7 -7 -6 -6 -6 -6 -6 -6 -6 -5 -5 -5 -5 -4 -4 -4 -4 -4 -3 -3 -3 -2 -2 -2 ------- Run | Scr Mat Min Mat Min Exi Min Mat Sto Fac DSF Gar Fac Was Fac Ext Cet Arc Hub Fac Upp Upp Zhi Pro Fac Upp Upp War Pro Res Tes Res Qua Sec Robot Analysis Total 9 | . 2 . 1 . . . 1 . . . . . . . . . . . . . . 4 . . . . . . . . 1 . . Derelict Logs Recovered 7 | . . . . . . . . . . . . . . . . . . . . 2 2 . 1 . 1 1 . . . . . . . Drone Launches 10 | . . . . . . . . . . . . . . . . . . . . . 6 . . . . 4 . . . . . . . Drone Recoveries 2 | . . . . . . . . . . . . . . . . . . . . . 2 . . . . . . . . . . . . Decoded 0b10 Intel 70 | . . . . . . . . . . . . . . . . . . . . . . . . . . . . . 26 39 5 . . Traps 6 | . . . . . . . . . . . . . . . . . . . . . . . . . . . . . 1 5 . . . Emergency Access 8 | . . . . . . . . . . . . . . . . . . . . . . . . . . . . . 4 4 . . . Items 48 | . . . . . . . . . . . . . . . . . . . . . . . . . . . . . 18 27 3 . . Machines 6 | . . . . . . . . . . . . . . . . . . . . . . . . . . . . . 1 3 2 . . Guards 2 | . . . . . . . . . . . . . . . . . . . . . . . . . . . . . 2 . . . . Exploration | -11 -10 -10 -9 -9 -9 -8 -8 -8 -7 -7 -7 -6 -6 -6 -6 -6 -6 -6 -5 -5 -5 -5 -4 -4 -4 -4 -4 -3 -3 -3 -2 -2 -2 ------------- Run | Scr Mat Min Mat Min Exi Min Mat Sto Fac DSF Gar Fac Was Fac Ext Cet Arc Hub Fac Upp Upp Zhi Pro Fac Upp Upp War Pro Res Tes Res Qua Sec Turns Passed 35350 | 44 1355 460 1573 76 3356 378 402 1527 52 412 691 868 782 1997 1514 479 465 2819 374 912 1149 1699 494 1289 357 713 1171 373 910 1505 1043 1395 2716 Spaces Moved 17094 | 15 682 208 689 48 1806 258 161 620 31 166 307 370 502 1020 693 242 156 1236 174 494 584 678 345 681 221 376 674 200 447 577 601 635 1197 Core . | . . . . . . . . . . . . . . . . . . . . . . . . . . . . . . . . . . Treads 12081 | 15 682 116 615 48 1468 . 58 620 31 36 . . 93 1020 693 242 156 1064 . . . . . 251 221 376 674 200 447 577 601 635 1142 Legs 4555 | . . 92 74 . 338 258 103 . . 130 307 370 6 . . . . 172 174 494 584 678 345 430 . . . . . . . . . Wheels 403 | . . . . . . . . . . . . . 403 . . . . . . . . . . . . . . . . . . . . Hover . | . . . . . . . . . . . . . . . . . . . . . . . . . . . . . . . . . . Flight . | . . . . . . . . . . . . . . . . . . . . . . . . . . . . . . . . . . Fastest Speed 100 | 160 160 140 133 160 126 126 126 160 160 160 190 120 120 160 163 163 163 100 100 170 170 100 104 106 150 150 150 150 145 153 153 155 147 Average Speed 157 | 160 160 153 157 160 153 126 167 189 160 193 190 184 135 161 163 163 163 160 116 170 170 168 125 123 150 150 150 150 149 153 154 156 154 Slowest Speed 320 | 160 160 240 160 160 240 126 240 240 160 270 190 190 240 163 163 245 163 320 170 170 170 174 174 240 150 150 225 152 153 153 156 161 250 Overloaded Moves . | . . . . . . . . . . . . . . . . . . . . . . . . . . . . . . . . . . Propulsion Burnouts . | . . . . . . . . . . . . . . . . . . . . . . . . . . . . . . . . . . Robots Hopped . | . . . . . . . . . . . . . . . . . . . . . . . . . . . . . . . . . . Cave-ins Triggered . | . . . . . . . . . . . . . . . . . . . . . . . . . . . . . . . . . . Teleports 4 | . . . . . . . . . . . . . . . . . . . . . . . . . . . . . . . . . 4 Spacefolds 27 | . . . . . . . . . . . . . . . . . . . . . . . . . . . . . . . . . 27 Exploration Rate (%) 53 | 3 96 27 60 11 91 55 15 83 1 93 69 14 84 35 80 74 74 68 5 70 73 70 49 20 38 64 88 47 14 78 26 65 84 Regions Visited 33 Branch Regions 20 Pre-discovered Areas 7 | . 2 . 1 . 1 . . . . . . . . . . . . . . . . 3 . . . . . . . . . . . Known Exits Taken 18 | . . . . . . . 1 . 1 . . . . 1 1 1 1 1 1 1 1 1 1 1 . 1 . 1 1 . 1 1 . Unknown Exits Taken 11 | 1 1 1 1 1 1 1 . 1 . . . . . . . . . . . . . . . . 1 . 1 . . 1 . . . Scrap Searched 8 | . . . . . . 1 . . . . . . . . . . . . . . 5 . . . 2 . . . . . . . . Spaces Dug 449 | . . . 10 . 7 10 2 6 . 1 3 5 . 36 1 . . 210 2 . . . . 2 . 33 6 17 10 25 22 17 24 Terrain Destroyed 1746 | . 27 25 67 . 36 51 11 43 . 8 12 81 2 121 43 2 15 414 2 52 1 23 3 75 . 131 36 37 72 104 63 93 96 Melee 32 | . . . 2 . 3 . 2 1 . . . . . . . . . 16 2 . . . . . . . 6 . . . . . . Projectile 470 | . . . . . 10 6 9 22 . 3 1 17 2 42 7 2 15 74 . . 1 23 2 5 . 4 6 5 38 75 12 38 51 AOE 1233 | . 27 25 65 . 22 45 . 19 . 3 11 64 . 78 35 . . 324 . 52 . . . 70 . 127 24 32 34 29 51 55 41 Terrain Rammed . | . . . . . . . . . . . . . . . . . . . . . . . . . . . . . . . . . . Walls Destroyed . | . . . . . . . . . . . . . . . . . . . . . . . . . . . . . . . . . . Machines Disabled . | . . . . . . . . . . . . . . . . . . . . . . . . . . . . . . . . . . Actions | -11 -10 -10 -9 -9 -9 -8 -8 -8 -7 -7 -7 -6 -6 -6 -6 -6 -6 -6 -5 -5 -5 -5 -4 -4 -4 -4 -4 -3 -3 -3 -2 -2 -2 --------- Run | Scr Mat Min Mat Min Exi Min Mat Sto Fac DSF Gar Fac Was Fac Ext Cet Arc Hub Fac Upp Upp Zhi Pro Fac Upp Upp War Pro Res Tes Res Qua Sec Total 23242 | 28 834 289 969 47 2257 286 258 836 34 229 373 495 580 1268 995 299 300 1751 289 559 730 1118 387 1076 244 503 817 252 622 1017 688 907 1905 Wait 2627 | 3 56 40 81 . 264 2 48 70 . 2 22 39 12 110 54 14 71 186 32 42 117 263 5 227 2 23 43 15 66 176 19 108 415 Move 17032 | 14 681 207 688 47 1805 257 160 619 30 165 304 370 501 1019 692 241 155 1235 173 493 583 677 344 680 220 375 673 199 446 576 600 634 1169 Hop . | . . . . . . . . . . . . . . . . . . . . . . . . . . . . . . . . . . Pick Up 308 | . 13 3 21 . 32 . 4 14 2 2 1 4 11 9 4 7 6 29 7 6 6 17 . 10 5 13 11 2 11 15 11 5 27 Fast Attach 125 | . 2 2 6 . 8 . 2 9 . 4 . 1 4 3 . 2 2 12 1 . 1 7 . 7 . . 5 2 10 13 3 9 10 Attach 170 | 2 2 2 7 . 4 1 3 2 2 2 1 3 4 3 3 1 5 12 5 3 3 13 8 15 3 22 5 . 4 5 5 2 18 Detach 49 | . . . . . 1 . 1 . . . . . 1 . . . 1 4 4 . . 4 4 13 . 8 2 . . 1 . . 5 Swap 351 | . 13 3 27 . 16 6 7 17 . 8 6 9 2 17 17 4 7 23 5 1 . 6 1 7 3 7 1 8 15 34 15 21 45 Drop 383 | 4 9 2 27 . 32 . 4 27 . 9 . 5 20 12 3 8 7 35 2 5 7 27 1 13 4 11 9 3 17 28 8 14 30 Fire 1832 | 5 58 30 110 . 68 20 26 77 . 27 24 53 25 95 60 22 41 198 58 9 13 52 24 104 7 43 16 23 53 167 27 114 183 Melee 113 | . . . 2 . 27 . 3 1 . . . . . . 5 . 5 16 2 . . 42 . . . . 10 . . . . . . Ram . | . . . . . . . . . . . . . . . . . . . . . . . . . . . . . . . . . . Kick 1 | . . . . . . . . . . . . 1 . . . . . . . . . . . . . . . . . . . . . Crush 3 | . . . . . . . . . . . . . . . . . . 1 . . . . . . . . . . . 2 . . . Escape Stasis 47 | . . . . . . . . . . 10 15 10 . . . . . . . . . 9 . . . . . . . . . . 3 Rewire 201 | . . . . . . . . . . . . . . . 157 . . . . . . 1 . . . 1 42 . . . . . . Trap . | . . . . . . . . . . . . . . . . . . . . . . . . . . . . . . . . . . Miscellaneous . | . . . . . . . . . . . . . . . . . . . . . . . . . . . . . . . . . . Route ------- -11/Scrapyard -10/Materials (discovered 4 exits: *Mat x3 / *Min) -10/Mines -9/Materials (discovered 2 exits: *Mat / [*Min]) -9/Mines -9/Exiles -8/Mines -8/Materials -8/Storage -7/Factory -7/DSF -7/Garrison (discovered 3 exits: *Fac x3) -6/Factory -6/Waste -6/Factory (discovered 5 exits: *Fac / *Low x2 / *Ext x2) -6/Extension (discovered 2 exits: *Fac / *Cet) -6/Cetus (discovered 3 exits: *Fac x2 / *Arc) -6/Archives (discovered 2 exits: *Fac / *Hub) -6/Hub_04(d) -5/Factory -5/Upper Caves -5/Upper Caves (discovered 2 exits: *Fac / *Zhi) -5/Zhirov -4/Proximity Caves -4/Factory (discovered 3 exits: *Res / *Upp x2) -4/Upper Caves -4/Upper Caves (discovered 2 exits: *Res / *War) -4/Warlord -3/Proximity Caves -3/Research (discovered 3 exits: Arm / *Tes x2) -3/Testing -2/Research -2/Quarantine (discovered 2 exits: [Acc] / *Sec) -2/Section 7 (discovered 1 exit: [Acc]) History --------- Turn | Location | Event 23 | -11/Scrapyard | Discovered new exit (range 3) 45 | -11/Scrapyard | Entered Materials 309 | -10/Materials | Discovered new exit (range 8) 318 | -10/Materials | Build established: Mutant 580 | -10/Materials | Core integrity fell below 50% 780 | -10/Materials | Repaired Lgt. Treads 787 | -10/Materials | Discovered new exit (range 9) 791 | -10/Materials | Central database locked down 1295 | -10/Materials | Discovered new exit (range 7) 1349 | -10/Materials | Discovered new exit (range 15) 1400 | -10/Materials | Entered Mines 1427 | -10/Mines | Met a Derelict bent on vengeance 1484 | -10/Mines | Discovered new exit (range 15) 1515 | -10/Mines | Found the Drone Emporium 1524 | -10/Mines | Found Prototype Device 1720 | -10/Mines | Assembled infested the area 1835 | -10/Mines | Core integrity fell below 20% 1860 | -10/Mines | Entered Materials 1860 | -9/Materials | Evolved 2 slots: Propulsion x1, Utility x1 2168 | -9/Materials | Build established: Scavenger-Mutant 2331 | -9/Materials | Discovered new exit (range 6) 2605 | -9/Materials | Repaired Hvy. Assault Rifle 2878 | -9/Materials | Core integrity fell below 50% 3141 | -9/Materials | Discovered new exit (range 15) 3161 | -9/Materials | Build established: Mutant 3339 | -9/Materials | Identified Bomb Drone Bay 3433 | -9/Materials | Entered Mines 3502 | -9/Mines | Deemed a non-threat by the Exiles lab entrance 3502 | -9/Mines | Discovered new exit (range 5) 3509 | -9/Mines | Entered Exiles 3548 | -9/Exiles | Met 8R-AWN 3577 | -9/Exiles | Met EX-HEX 3637 | -9/Exiles | Build established: Scavenger-Mutant 3667 | -9/Exiles | Met EX-DEC 3701 | -9/Exiles | Learned location of Zion (-7) 3733 | -9/Exiles | Met EX-BIN 3755 | -9/Exiles | Aligned with FarCom system 3757 | -9/Exiles | Given EX-Vault access code 3794 | -9/Exiles | Opened EX-Vault 3806 | -9/Exiles | Found Longsword +1 3811 | -9/Exiles | Found Field Lobotomy Kit 3847 | -9/Exiles | Warned to stay clear of 0b10 Research branches 4166 | -9/Exiles | Attacked by the Exiles 4288 | -9/Exiles | Found Prototype Ballistic Gun 4291 | -9/Exiles | Found Prototype Ballistic Gun 4316 | -9/Exiles | Discovered new exit (range 14) 4527 | -9/Exiles | Build established: Mutant 5329 | -9/Exiles | Destroyed 8R-AWN 5335 | -9/Exiles | Found Prototype Device 5335 | -9/Exiles | Identified AS-neutralizer No. 17b 5341 | -9/Exiles | Found Prototype Protection 5371 | -9/Exiles | Identified 8R-AWN's Boregun (x2) 5589 | -9/Exiles | Destroyed EX-DEC 5622 | -9/Exiles | Destroyed EX-HEX 5662 | -9/Exiles | Destroyed EX-BIN 5802 | -9/Exiles | Identified 8R-AWN's Armor/EX 5821 | -9/Exiles | Found Prototype Processor 5829 | -9/Exiles | Identified Exp. Targeting Computer 5937 | -9/Exiles | Found Prototype Processor 5942 | -9/Exiles | Identified Exp. Core Analyzer 5979 | -9/Exiles | Found Prototype Device 6017 | -9/Exiles | Identified System Purifier 6695 | -9/Exiles | Build established: Scavenger-Mutant 6740 | -9/Exiles | Found Deploy-a-Sentry 6743 | -9/Exiles | Found Deploy-a-Sentry 6746 | -9/Exiles | Found Deploy-a-Sentry 6865 | -9/Exiles | Stole three prototypes: Field Lobotomy Kit, Longsword +1, Deploy-a-Sentry 6865 | -9/Exiles | Entered Mines 7226 | -8/Mines | Discovered new exit (range 14) 7243 | -8/Mines | Entered Materials 7243 | -8/Materials | Evolved 2 slots: Propulsion x1, Utility x1 7391 | -8/Materials | Garrison activated, responded to threat 7441 | -8/Materials | Discovered new exit (range 6) 7550 | -8/Materials | Identified exit to Storage 7645 | -8/Materials | Entered Storage 8295 | -8/Storage | Discovered new exit (range 5) 8318 | -8/Storage | Met 01-MTF 8357 | -8/Storage | Assimilated 01-MTF with FLK Orb 9120 | -8/Storage | Destroyed 01-MTF 9135 | -8/Storage | Found 01-MTF's Shockpuncher 9172 | -8/Storage | Entered Factory 9172 | -7/Factory | Evolved 2 slots: Utility x2 9224 | -7/Factory | Identified exit to DSF 9224 | -7/Factory | Entered DSF 9275 | -7/DSF | Additional patrols routed to DSF 9319 | -7/DSF | Assimilated H-61 Shepherd with FLK Orb 9450 | -7/DSF | Discovered new exit (range 7) 9568 | -7/DSF | Sterilization system engaged 9588 | -7/DSF | Ambient heat levels rising (+10) 9603 | -7/DSF | Ambient heat levels rising (+10) 9618 | -7/DSF | Ambient heat levels rising (+10) 9633 | -7/DSF | Ambient heat levels rising (+10) 9636 | -7/DSF | Entered Garrison 9735 | -7/Garrison | Triggered checkpoint 9776 | -7/Garrison | Triggered checkpoint 9924 | -7/Garrison | Discovered new exit (range 10) 9943 | -7/Garrison | Attempted to access garrison exit controls, blocked by remote lockdown 9963 | -7/Garrison | Build established: Mutant 10098 | -7/Garrison | Discovered new exit (range 14) 10122 | -7/Garrison | Attempted to access garrison exit controls, blocked by remote lockdown 10193 | -7/Garrison | Triggered checkpoint 10312 | -7/Garrison | Discovered new exit (range 9) 10327 | -7/Garrison | Entered Factory 10327 | -6/Factory | Evolved 2 slots: Propulsion x1, Utility x1 10628 | -6/Factory | Build established: Scavenger-Mutant 10677 | -6/Factory | First assault squad dispatched 11195 | -6/Factory | Sucked down chute 11195 | -6/Factory | Entered Waste 11211 | -6/Waste | Spotted C-40 Crusher 11212 | -6/Waste | Found Prototype Processor 11212 | -6/Waste | Identified Exp. Terrain Scan Processor 11254 | -6/Waste | Spotted C-40 Crusher 11263 | -6/Waste | Destroyed C-40 Crusher 11296 | -6/Waste | Spotted C-40 Crusher 11326 | -6/Waste | Spotted C-40 Crusher 11341 | -6/Waste | Spotted C-40 Crusher 11445 | -6/Waste | Spotted C-40 Crusher 11469 | -6/Waste | Destroyed C-40 Crusher 11541 | -6/Waste | Destroyed C-40 Crusher 11576 | -6/Waste | Discovered new exit (range 14) 11635 | -6/Waste | Found Damper Plating 11673 | -6/Waste | Destroyed C-40 Crusher 11688 | -6/Waste | Found Damper Plating 11703 | -6/Waste | Destroyed C-40 Crusher 11773 | -6/Waste | Destroyed C-40 Crusher 11976 | -6/Waste | Identified exit to Factory 11977 | -6/Waste | Entered Factory 12459 | -6/Factory | Repaired Centrium Light Armor Plating 13433 | -6/Factory | Discovered new exit (range 15) 13476 | -6/Factory | Identified exit to Lower Caves 13520 | -6/Factory | Discovered new exit (range 8) 13532 | -6/Factory | Identified exit to Factory 13770 | -6/Factory | Identified exit to Extension 13974 | -6/Factory | Entered Extension 14046 | -6/Extension | Rescued a captive Derelict 14051 | -6/Extension | Rescued a captive Derelict 14087 | -6/Extension | Rescued a captive Derelict 14092 | -6/Extension | Rescued a captive Derelict 14107 | -6/Extension | Rescued a captive Derelict 14243 | -6/Extension | Rescued a captive Derelict 14295 | -6/Extension | Rescued a captive Derelict 14296 | -6/Extension | Rescued a captive Derelict 14315 | -6/Extension | Rescued a captive Derelict 14334 | -6/Extension | Rescued a captive Derelict 14335 | -6/Extension | Rescued a captive Derelict 14723 | -6/Extension | Spotted B-75 Beast 14733 | -6/Extension | Allies destroyed B-75 Beast 14741 | -6/Extension | Spotted B-75 Beast 14774 | -6/Extension | Allies destroyed B-75 Beast 14863 | -6/Extension | Rescued a captive Derelict 14893 | -6/Extension | Rescued a captive Derelict 14894 | -6/Extension | Rescued a captive Derelict 14988 | -6/Extension | Rescued a captive Derelict 15291 | -6/Extension | Rescued A7 15462 | -6/Extension | Discovered exit to Factory (range 10) 15463 | -6/Extension | Discovered new exit (range 6) 15485 | -6/Extension | Identified exit to Cetus 15488 | -6/Extension | Entered Cetus 15488 | -6/Cetus | Accompanied by 13 allies (A7) 15493 | -6/Cetus | Acquired a Cetus Manufacturing Module code from A7 15511 | -6/Cetus | Spotted Cetus Guard 15511 | -6/Cetus | Spotted Cetus Guard 15514 | -6/Cetus | Spotted Cetus Guard 15515 | -6/Cetus | Spotted Cetus Guard 15519 | -6/Cetus | Allies destroyed Cetus Guard 15529 | -6/Cetus | Allies destroyed Cetus Guard 15532 | -6/Cetus | Allies destroyed Cetus Guard 15535 | -6/Cetus | Destroyed Cetus Guard 15605 | -6/Cetus | Discovered exit to Factory (range 15) 15649 | -6/Cetus | Cetus Manufacturing Module disabled 15701 | -6/Cetus | Failed to start Cetus Manufacturing Module 15715 | -6/Cetus | Escorted A7 to Cetus Mainframe 15752 | -6/Cetus | Discovered new exit (range 15) 15784 | -6/Cetus | Spotted Cetus Guard 15784 | -6/Cetus | Spotted Cetus Guard 15788 | -6/Cetus | Spotted Cetus Guard 15790 | -6/Cetus | Spotted Cetus Guard 15801 | -6/Cetus | Allies destroyed Cetus Guard 15801 | -6/Cetus | Allies destroyed Cetus Guard 15807 | -6/Cetus | Destroyed Cetus Guard 15810 | -6/Cetus | Allies destroyed Cetus Guard 15815 | -6/Cetus | Discovered exit to Factory (range 15) 15831 | -6/Cetus | Met Revision 17 15844 | -6/Cetus | Destroyed Revision 17 15961 | -6/Cetus | Identified exit to Archives 15967 | -6/Cetus | Entered Archives 15967 | -6/Archives | Accompanied by 4 allies (A7) 15972 | -6/Archives | Received a hacking code to weaken MAIN.C 15972 | -6/Archives | Assimilated A7 with FLK Orb 16094 | -6/Archives | Discovered exit to Factory (range 14) 16160 | -6/Archives | System corruption reached 10% 16362 | -6/Archives | Destroyed A7 16366 | -6/Archives | Extracted ID and sensor layout for unrecognized location from A7's data core 16408 | -6/Archives | Discovered new exit (range 15) 16431 | -6/Archives | Identified exit to Hub_04(d) 16432 | -6/Archives | Entered Hub_04(d) 17058 | -6/Hub_04(d) | Core integrity fell below 50% 17101 | -6/Hub_04(d) | Destroyed 7 combat bots 17280 | -6/Hub_04(d) | Discovered exit to Factory (range 16) 17681 | -6/Hub_04(d) | Network Hub disabled 17796 | -6/Hub_04(d) | Spotted Lightning 17800 | -6/Hub_04(d) | Spotted Lightning 17801 | -6/Hub_04(d) | Spotted Lightning 17863 | -6/Hub_04(d) | Destroyed Lightning 17928 | -6/Hub_04(d) | Destroyed Lightning 17940 | -6/Hub_04(d) | Destroyed Lightning 17950 | -6/Hub_04(d) | Found Prototype Energy Cannon 17953 | -6/Hub_04(d) | Found Prototype Device 17953 | -6/Hub_04(d) | Identified Exp. EM Disruption Field 17961 | -6/Hub_04(d) | Found Prototype Device 17963 | -6/Hub_04(d) | Identified Exp. Phase Shifter 17981 | -6/Hub_04(d) | Found Exp. Targeting Computer 17995 | -6/Hub_04(d) | Found Prototype Energy Cannon 18002 | -6/Hub_04(d) | Found Exp. Phase Shifter 18142 | -6/Hub_04(d) | Network Hub disabled 18448 | -6/Hub_04(d) | Spotted Lightning 18448 | -6/Hub_04(d) | Spotted Lightning 18459 | -6/Hub_04(d) | Spotted Lightning 18478 | -6/Hub_04(d) | Destroyed Lightning 18481 | -6/Hub_04(d) | Destroyed Lightning 18520 | -6/Hub_04(d) | Destroyed Lightning 18569 | -6/Hub_04(d) | Found Prototype Energy Cannon 18645 | -6/Hub_04(d) | Network Hub disabled 18882 | -6/Hub_04(d) | First assault squad dispatched 18892 | -6/Hub_04(d) | Identified EMDS (x2) 19104 | -6/Hub_04(d) | Found Exp. Targeting Computer 19115 | -6/Hub_04(d) | Found EMDS 19251 | -6/Hub_04(d) | Entered Factory 19251 | -5/Factory | Evolved 2 slots: Power x1, Utility x1 19551 | -5/Factory | First assault squad dispatched 19593 | -5/Factory | Discovered new exit (range 8) 19623 | -5/Factory | Identified exit to Upper Caves 19625 | -5/Factory | Entered Upper Caves 19625 | -5/Upper Caves | Spotted R2-3BM(f) 19626 | -5/Upper Caves | Encountered a Master Thief 19634 | -5/Upper Caves | Longsword +1 stolen by Master Thief 19635 | -5/Upper Caves | Destroyed R2-3BM(f) 19656 | -5/Upper Caves | Destroyed 9 combat bots 20072 | -5/Upper Caves | Learned Factory terminal intel 20076 | -5/Upper Caves | Learned Factory terminal intel 20516 | -5/Upper Caves | Discovered new exit (range 8) 20535 | -5/Upper Caves | Identified exit to Upper Caves 20537 | -5/Upper Caves | Entered another Upper Caves area 20537 | -5/Upper Caves | Spotted HS-6CS(f) 20537 | -5/Upper Caves | Spotted HL-CMM(f) 20538 | -5/Upper Caves | Encountered a Master Thief 20538 | -5/Upper Caves | Encountered a Master Thief 20539 | -5/Upper Caves | Spotted 3P-PAM(f) 20541 | -5/Upper Caves | Encountered a Master Thief 20588 | -5/Upper Caves | Discovered new exit (range 5) 20595 | -5/Upper Caves | Identified exit to Factory 21056 | -5/Upper Caves | Encountered a Warlord checkpoint 21667 | -5/Upper Caves | Discovered new exit (range 15) 21684 | -5/Upper Caves | Identified exit to Zhirov 21686 | -5/Upper Caves | Entered Zhirov 21686 | -5/Zhirov | Discovered new exit (range 3) 21717 | -5/Zhirov | Met Zhirov 21748 | -5/Zhirov | Learned location of Quarantine (-2) 21748 | -5/Zhirov | Learned location of Testing (-3) 21748 | -5/Zhirov | Learned location of Command (-1) 21765 | -5/Zhirov | Zhirov requested help retrieving the SGEMP Prototype 21830 | -5/Zhirov | Found Alien Artifact 21830 | -5/Zhirov | Identified Integrated Reactor 21830 | -5/Zhirov | Installed Integrated Reactor, increased core energy generation (+10) 22375 | -5/Zhirov | Found Alien Artifact 22468 | -5/Zhirov | Identified exit to Proximity Caves 22524 | -5/Zhirov | Attacked by Zhirov 22529 | -5/Zhirov | Destroyed Svarog 22551 | -5/Zhirov | Destroyed Perun 22830 | -5/Zhirov | Zhirov warped through subspace 22839 | -5/Zhirov | Zhirov detonated his lab 22839 | -5/Zhirov | Cloak Generator disabled 23020 | -5/Zhirov | Found Exp. Terrain Scanner 23022 | -5/Zhirov | Found Exp. Thermal Shield 23385 | -5/Zhirov | Entered Proximity Caves 23804 | -4/Proximity Caves | Discovered exit to Factory (range 12) 23807 | -4/Proximity Caves | Learned location of 1 exit from Proximity Caves 23879 | -4/Proximity Caves | Entered Factory 23879 | -4/Factory | Evolved 2 slots: Propulsion x1, Utility x1 23880 | -4/Factory | Loaded intel: 26 terminal locations 24044 | -4/Factory | Repaired Imp. Weapon Shielding 24102 | -4/Factory | Discovered new exit (range 15) 24149 | -4/Factory | Assimilated H-71 Marshal with FLK Orb 24176 | -4/Factory | Identified exit to Research 24234 | -4/Factory | Identified Transdimensional Reconstructor 24302 | -4/Factory | Discovered new exit (range 16) 24321 | -4/Factory | Identified exit to Upper Caves 24532 | -4/Factory | Fabricated Biometal Heavy Treads? 24746 | -4/Factory | Spotted B-86 Titan 24840 | -4/Factory | Destroyed B-86 Titan 24879 | -4/Factory | First assault squad dispatched 25168 | -4/Factory | Entered Upper Caves 25343 | -4/Upper Caves | Learned Research stockpile data 25504 | -4/Upper Caves | Discovered new exit (range 14) 25525 | -4/Upper Caves | Entered another Upper Caves area 25526 | -4/Upper Caves | Identified exit to Warlord 25536 | -4/Upper Caves | Attracted the attention of an 0b10 outpost 25589 | -4/Upper Caves | Destroyed 13 combat bots 25598 | -4/Upper Caves | Lost 3 parts (2u1w) 25634 | -4/Upper Caves | Discovered exit to Research (range 13) 25770 | -4/Upper Caves | Build established: Mutant 26092 | -4/Upper Caves | Spotted B-86 Titan 26110 | -4/Upper Caves | Destroyed B-86 Titan 26203 | -4/Upper Caves | Spotted 8W-5SO(f) 26203 | -4/Upper Caves | Spotted JB-QPH(f) 26203 | -4/Upper Caves | Spotted 09-XVJ(f) 26203 | -4/Upper Caves | Spotted 53-EEM(f) 26204 | -4/Upper Caves | Encountered a Master Thief 26204 | -4/Upper Caves | Encountered a Master Thief 26204 | -4/Upper Caves | Encountered a Master Thief 26204 | -4/Upper Caves | Encountered a Master Thief 26205 | -4/Upper Caves | Spotted S6-U2Z(f) 26206 | -4/Upper Caves | Encountered a Master Thief 26207 | -4/Upper Caves | Longsword +1 stolen by Master Thief 26207 | -4/Upper Caves | Transdimensional Reconstructor stolen by Master Thief 26238 | -4/Upper Caves | Entered Warlord 26385 | -4/Warlord | Build established: Scavenger-Mutant 26488 | -4/Warlord | Received a Watcher feed algorithm from an ecstatic Tinkerer 26903 | -4/Warlord | Met Warlord 26928 | -4/Warlord | Warlord's base attacked by MAIN.C 26930 | -4/Warlord | Found Prototype Reactor 26930 | -4/Warlord | Identified Vortex Chain Reactor 27126 | -4/Warlord | Found Prototype Energy Gun 27128 | -4/Warlord | Found Prototype Energy Gun 27134 | -4/Warlord | Found Prototype Piercing Weapon 27136 | -4/Warlord | Found Prototype Piercing Weapon 27217 | -4/Warlord | Build established: Commander-Mutant 27278 | -4/Warlord | Warlord forces counterattacked 27313 | -4/Warlord | Identified Vortex Shotgun (x2) 27323 | -4/Warlord | Spotted Executioner 27367 | -4/Warlord | Spotted Striker 27394 | -4/Warlord | Discovered new exit (range 12) 27409 | -4/Warlord | Entered Proximity Caves 27409 | -3/Proximity Caves | Accompanied by 1 ally 27572 | -3/Proximity Caves | Attracted the attention of an 0b10 checkpoint 27601 | -3/Proximity Caves | System corruption reached 10% 27628 | -3/Proximity Caves | Spotted B-86 Titan 27646 | -3/Proximity Caves | Destroyed B-86 Titan 27652 | -3/Proximity Caves | Build established: Scavenger-Mutant 27782 | -3/Proximity Caves | Entered Research 27782 | -3/Research | Evolved 2 slots: Power x1, Utility x1 28135 | -3/Research | Build established: Generator-Mutant 28519 | -3/Research | Identified exit to Armory 28519 | -3/Research | Identified exit to Testing 28692 | -3/Research | Entered Testing 28768 | -3/Testing | Spotted PH-8W7F41XC43 28835 | -3/Testing | Found Prototype Launcher 28835 | -3/Testing | Identified Z-bomb Delivery System 28858 | -3/Testing | Found Prototype Energy Cannon 28858 | -3/Testing | Identified Null Cannon 28881 | -3/Testing | Identified Vortex Lance 28882 | -3/Testing | Found Prototype Device 28887 | -3/Testing | Identified Exp. Thermal Defense Suite 28946 | -3/Testing | Spotted Striker 28952 | -3/Testing | Found Prototype Processor 28955 | -3/Testing | Identified Exp. Melee Analysis Suite 28973 | -3/Testing | Found Prototype Protection 28973 | -3/Testing | Identified Centrium Heavy Armor Plating 29135 | -3/Testing | Found Prototype Device 29139 | -3/Testing | Identified Exp. ECM Suite 29339 | -3/Testing | Found Prototype Energy Cannon 29339 | -3/Testing | Identified Hpw. Disruptor Cannon 29734 | -3/Testing | First assault squad dispatched 29764 | -3/Testing | Spotted PY-K37CLFHHBN 29804 | -3/Testing | Destroyed PY-K37CLFHHBN 29877 | -3/Testing | Discovered new exit (range 24) 30110 | -3/Testing | Destroyed 15 combat bots 30175 | -3/Testing | Found Prototype Energy Gun 30194 | -3/Testing | Identified Warp Gun 30197 | -3/Testing | System corruption reached 10% 30197 | -3/Testing | Entered Research 30197 | -2/Research | Warlord forces began assault on 0b10 30197 | -2/Research | Evolved 2 slots: Utility x2 30307 | -2/Research | Research machine network offline 30381 | -2/Research | Lost 3 parts (2u1w) 30809 | -2/Research | Borebot progress halted 30858 | -2/Research | Discovered new exit (range 10) 30870 | -2/Research | Borebot progress halted 30872 | -2/Research | Identified exit to Quarantine 30958 | -2/Research | Met up with Warlord 31113 | -2/Research | Spotted Striker 31125 | -2/Research | Destroyed Striker 31240 | -2/Research | Entered Quarantine 31396 | -2/Quarantine | Found Alien Artifact 31421 | -2/Quarantine | Found Alien Artifact 31616 | -2/Quarantine | Cryocooling Duct disabled 31631 | -2/Quarantine | Ambient heat levels rising (+20) 31631 | -2/Quarantine | Non-combat units ordered to evacuate 31699 | -2/Quarantine | Found Vortex Chain Reactor 31758 | -2/Quarantine | Discovered new exit (range 15) 31990 | -2/Quarantine | First assault squad dispatched 32088 | -2/Quarantine | Destroyed 9 combat bots 32474 | -2/Quarantine | Spotted Fortress 32515 | -2/Quarantine | Destroyed Fortress 32629 | -2/Quarantine | Discovered new exit (range 5) 32633 | -2/Quarantine | Identified exit to Section 7 32635 | -2/Quarantine | Entered Section 7 32822 | -2/Section 7 | Repaired Lyr. Heavy Armor Plating 32859 | -2/Section 7 | Found Fusion Bomb Launcher 32861 | -2/Section 7 | Found Fusion Bomb Launcher 32871 | -2/Section 7 | Spotted S7 Guard 32887 | -2/Section 7 | Found Alien Energy Cannon 32905 | -2/Section 7 | Identified Sigix Shearcannon 32916 | -2/Section 7 | Discovered new exit (range 22) 32919 | -2/Section 7 | Destroyed S7 Guard 32974 | -2/Section 7 | Spotted B-90 Cyclops 33002 | -2/Section 7 | Destroyed B-90 Cyclops 33069 | -2/Section 7 | Found Alien Artifact 33105 | -2/Section 7 | Found Alien Artifact 33441 | -2/Section 7 | Found Alien Artifact 33528 | -2/Section 7 | Found Alien Artifact 33566 | -2/Section 7 | Spotted S7 Guard 33571 | -2/Section 7 | Destroyed S7 Guard 33603 | -2/Section 7 | Found Alien Artifact 33885 | -2/Section 7 | First assault squad dispatched 33990 | -2/Section 7 | Identified Core Regenerator 33990 | -2/Section 7 | Identified Integrity Redistributor 33990 | -2/Section 7 | Identified Core Reset Matrix 33990 | -2/Section 7 | Identified Spacefold Activator (x2) 33994 | -2/Section 7 | Destroyed 7 combat bots 34274 | -2/Section 7 | Destroyed 9 combat bots 34294 | -2/Section 7 | Spotted Executioner 34294 | -2/Section 7 | Spotted Executioner 34447 | -2/Section 7 | Build established: Generator-Skirmisher 34487 | -2/Section 7 | Used Integrity Redistributor, redistributed integrity from core (-308) 34489 | -2/Section 7 | Warped through subspace 34512 | -2/Section 7 | Spotted B-99 Colossus 34629 | -2/Section 7 | Found Alien Artifact 34629 | -2/Section 7 | Identified LRC Matter Compressor 34629 | -2/Section 7 | Installed LRC Matter Compressor, increased matter storage capacity (+125) 34713 | -2/Section 7 | Found Integrity Redistributor 34744 | -2/Section 7 | High security lockdown imminent 34752 | -2/Section 7 | Core integrity fell below 50% 34767 | -2/Section 7 | Found Alien Artifact 34770 | -2/Section 7 | Found Alien Artifact 34772 | -2/Section 7 | Found Alien Artifact 34824 | -2/Section 7 | High security lockdown engaged 34899 | -2/Section 7 | Found Transdimensional Reconstructor 34903 | -2/Section 7 | Found Alien Artifact 34903 | -2/Section 7 | Identified Hpw. Transdimensional Reconstructor 34903 | -2/Section 7 | Warped through subspace 34903 | -2/Section 7 | Spotted Striker 34903 | -2/Section 7 | Spotted Striker 34903 | -2/Section 7 | Spotted Executioner 34903 | -2/Section 7 | Spotted Executioner 34904 | -2/Section 7 | Warped through subspace 35046 | -2/Section 7 | Found Transdimensional Reconstructor 35117 | -2/Section 7 | Spotted Investigator 35130 | -2/Section 7 | Scanned by Researcher 35131 | -2/Section 7 | Intercept squad dispatched 35132 | -2/Section 7 | Destroyed Investigator 35136 | -2/Section 7 | Warped through subspace 35137 | -2/Section 7 | Core integrity fell below 20% 35155 | -2/Section 7 | Destroyed 12 combat bots 35174 | -2/Section 7 | Used Core Regenerator, restored core integrity (+362) 35249 | -2/Section 7 | Destroyed 7 combat bots 35282 | -2/Section 7 | Spotted S7 Guard 35295 | -2/Section 7 | Found Alien Artifact 35304 | -2/Section 7 | Spotted Alpha 7 35335 | -2/Section 7 | Spotted Striker 35340 | -2/Section 7 | System corruption reached 10% 35343 | -2/Section 7 | Spotted Tracker 35349 | -2/Section 7 | Spotted Tracker 35351 | -2/Section 7 | Destroyed by Tracker with Linked Autogun Last Messages --------------- 35336_ P-80 Master unfolds itself. 35336_ M-36 Artificer unfolds itself. 35336_ C-30 ARC bursts open, deploying its payload. 35336_ P-80 Master unfolds itself. 35336_ E-15 Imp unfolds itself. 35336_ C-30 ARC bursts open, deploying its payload. 35336_ G-73 Enforcer unfolds itself. 35336_ M-36 Artificer unfolds itself. 35338_ Spacefolded through E-15 Imp. 35339_ Lyr. Heavy Armor Plating destroyed. 35339_ Adv. Sensor Array destroyed. 35339_ Spacefolded through Wall. 35344_ Exp. Cooling System blown off. 35344_ Enh. Nova Cannon blown off. 35344_ E-15 Imp destroyed. 35346_ Adv. Heavy Siege Treads destroyed. 35347_ Null Cannon blown off. 35347_ E-15 Imp destroyed. 35348_ Vortex Chain Reactor destroyed. 35349_ Spacefolded through Wall. Map ----- +----------------------------------------------------+ | ### """ """ ############## """ """ ##### | | ### """" """" ############## """ """ ####" | | # """ """ ############## ##### " | | # ############## ##?## " | | # " " ###################+########## # | | # """ """ #######T# "%" ^% # | | # """" """" + " % # | | # """ """ ######### % " | | # =* ######### # | | #######"#+############## #################### # | | =%! # ##########%# | | !![= ^ ^ # """"" ##########%# | | *%%%== # " "" ########## # | | %!=!!%/ """"""" """"""" # """ ##########/# | | #%##### """"""" """"""" # " " ##### # | | =%[#### """"""" """"""" # "" ##### %"" # | | #%##### # ##### """ # | | !![ # ^ """"""" """"" # ##### " " # | | " ] # """"""" """"" ###/########### "" # | | " # """" "" """"" = " #" "" # | | " + !%]!%" "%" #%" # | | "" # ] =%"" " "" # | | ! """# %= p % ""%" # # | | ![ !S"# ## ##########s################# # | | !=[!! # ## #### ##########" # | | ####### % ######## s @ ##########%" # | | ""|""!" ######## """"""" #######?##" # | | ""%" %+ ######## """"""" ####?###?# # | | ""!"%!" ######## """"""" ################# | | """]!]"! ######## ################# | | "![%= # ####################################### | | ""!=! # ###################### | | " * # < #######?############## | | "###### ########?###?######### | | ######" #################?#?#? | | ########+###############+######################### | | # # #################### | | # # ###########?######## | | # # """ ?"" #############?####?# | | # """"""" """"""" # " " " " #################?## | | # """"""" """"""" # """ """ ###########?######## | | # """"""" """"""" # #################### | | # # ###################? | | ###############################?#?###?##########?# | | | | | | | | | | | | | +----------------------------------------------------+ Best States ------------- Heat Dissipation 187 Coolant Potential 220 Energy Generation 111 Energy Capacity 1525 Matter Stores 425 Matter Capacity 425 Sight Range 23 Robot Scan Range 16 Terrain Scan Range 30 Terrain Scan Density 1010 Jamming Range 16 Power Amplification 30 Armor Coverage 3200 Resistance: EM 90 Weapon Shielding 66 Weapon Cycling 25 Melee Speed Boost 30 Phase Shifting 20 Evasion (%) 75 Targeting Accuracy 12 Target Analysis 8 Core Analysis 8 Recoil Reduction 6 Energy Filtering 50 Particle Charging 30 Kinecelleration 40 Offensive Hacking 10 Defensive Hacking 10 Item Schematics ----------------- Assault Drone Bay | -5/Zhirov | Free Exp. Heat Sink | -5/Zhirov | Free Exp. Optical Array | -5/Zhirov | Free Imp. Arc Thrower | -5/Zhirov | Free Biometal Heavy Treads | -4/Factory | Hacked Robot Schematics ------------------ None Fabricated ------------ Biometal Heavy Treads | x2 | -4/Factory Alien Tech Used ----------------- Integrated Reactor Sigix Shearcannon Spacefold Activator Integrity Redistributor Transdimensional Reconstructor LRC Matter Compressor High-powered Transdimensional Reconstructor Core Regenerator Achievements -------------- None Challenges ------------ None Game ------ Seed FactoryTerrabombKatana Manual? 0 Play Time 05:52:30 Cumulative 618.6 hours Start 2022.04.26 @ 23:42:29 End 2022.04.29 @ 16:27:51 Sessions 13 Manual Loads 0 Difficulty Rogue Special Mode None Game No. 574 Rogue 574 Adventurer 0 Explorer 0 Win Type - Total 22 Types 10/4/4/1/1/0/1/1/0 Lore% 88 Gallery% 95 Achievement% 77 Wizard Run 0 Options --------- ASCII 0 Keyboard 0 Movement Mouse Keybinds 1 Fullscreen 2 Font 24/Smallcaps Map View 76x50 Tactical HUD 1 Map Filters NONE Filters NONE Steam 1 RUN: 00c461da-14c1-466a-91a5-84762359eecc